Workbook

Sheet Startsida
A1: Verktyg för beräkning av livscykelkostnad (LCC)

Sheet LCC
A1: Lönsamhetsberäkningar med hjälp av LCC och återbetalningstid
B3: Generella indata
B5: Kalkylperiod (år) | C5: 20
B6: Kalkylränta (%) | C6: 0.05
A8: <- Tror du att energipriserna kommer att förändras? Tryck på plus för att ange energiprisförändring <- | B8: Energislag 1 | C8: El
B9: Energipris energislag (kr/kWh) | C9: 1
B10: Förväntad real årlig energiprisförändring (%)
B11: Energislag 2
B12: Energipris energislag (kr/kWh)
B13: Förväntad real årlig energiprisförändring (%)
B14: Energislag 3
B15: Energipris energislag (kr/kWh)
B16: Förväntad real årlig energiprisförändring (%)
B18: Nusummefaktor | C18: =IF($C$6=0,$C$5,(1-(1+$C$6)^-$C$5)/$C$6) -> 12.46221034
B19: Nusummefaktor energislag 1 | C19: =IF($C$6=$C$10,$C$5,((1-((1+$C$10)/(1+$C$6))^$C$5)/((1+$C$6)/(1+$C$10)-1))) -> 12.46221034
B20: Nusummefaktor energislag 2 | C20: =IF($C$6=$C$13,$C$5,((1-((1+$C$13)/(1+$C$6))^$C$5)/((1+$C$6)/(1+$C$13)-1))) -> 12.46221034
B21: Nusummefaktor energislag 3 | C21: =IF($C$6=$C$16,$C$5,((1-((1+$C$16)/(1+$C$6))^$C$5)/((1+$C$6)/(1+$C$16)-1))) -> 12.46221034
B23: Data för olika åtgärder/utrustningsalternativ
C24: Alt A | D24: Alt B | E24: Alt C
B25: Åtgärd/utrustningsalternativ | C25: Ex ingen åtgärd
B26: Investeringskostnad (kr)
B28: Årligt energibehov, energislag 1 (kWh)
B29: Årligt energibehov, energislag 2 (kWh)
B30: Årligt energibehov, energislag 3 (kWh)
B32: Drift- och underhållskostnad (kr/år)
B33: Underhållskostnad år 1 | F33: =(1+$C$6)^-1 -> 0.9523809524
B34: år 2 | F34: =(1+$C$6)^-2 -> 0.9070294785
B35: 3 | F35: =(1+$C$6)^-B35 -> 0.8638375985
B36: 4 | F36: =(1+$C$6)^-B36 -> 0.8227024748
B37: 5 | F37: 0.7835261665
B38: 6 | F38: 0.7462153966
B39: 7 | F39: 0.7106813301
B40: 8 | F40: 0.676839362
B41: 9 | F41: 0.6446089162
B42: 10 | F42: 0.6139132535
B43: 11 | F43: 0.5846792891
B44: 12 | F44: 0.5568374182
B45: 13 | F45: 0.5303213506
B46: 14 | F46: 0.505067953
B47: 15 | F47: 0.4810170981
B48: 16 | F48: 0.458111522
B49: 17 | F49: 0.4362966876
B50: 18 | F50: =(1+$C$6)^-B50 -> 0.4155206549
B51: 19 | F51: 0.395733957
B52: 20 | F52: 0.3768894829
B53: 21 | F53: 0.3589423646
B54: 22 | F54: 0.3418498711
B55: 23 | F55: 0.3255713058
B56: 24 | F56: 0.3100679103
B57: 25 | F57: 0.2953027717
B58: 26 | F58: 0.281240735
B59: 27 | F59: 0.267848319
B60: 28 | F60: 0.2550936371
B61: 29 | F61: 0.2429463211
B62: 30 | F62: 0.2313774487
A63: <- Tryck på plus för att ange kostnader för enskilda år
B64: Övriga årliga kostnader (kr/år)
B65: Övriga kostnader år 1 | F65: =(1+$C$6)^-1 -> 0.9523809524
B66: år 2 | F66: =(1+$C$6)^-2 -> 0.9070294785
B67: 3 | F67: =(1+$C$6)^-B67 -> 0.8638375985
B68: 4 | F68: =(1+$C$6)^-B68 -> 0.8227024748
B69: 5 | F69: 0.7835261665
B70: 6 | F70: 0.7462153966
B71: 7 | F71: 0.7106813301
B72: 8 | F72: 0.676839362
B73: 9 | F73: 0.6446089162
B74: 10 | F74: 0.6139132535
B75: 11 | F75: 0.5846792891
B76: 12 | F76: 0.5568374182
B77: 13 | F77: 0.5303213506
B78: 14 | F78: 0.505067953
B79: 15 | F79: 0.4810170981
B80: 16 | F80: 0.458111522
B81: 17 | F81: 0.4362966876
B82: 18 | F82: 0.4155206549
B83: 19 | F83: 0.395733957
B84: 20 | F84: 0.3768894829
B85: 21 | F85: 0.3589423646
B86: 22 | F86: 0.3418498711
B87: 23 | F87: 0.3255713058
B88: 24 | F88: 0.3100679103
B89: 25 | F89: 0.2953027717
B90: 26 | F90: 0.281240735
B91: 27 | F91: 0.267848319
B92: 28 | F92: 0.2550936371
B93: 29 | F93: 0.2429463211
B94: 30 | F94: 0.2313774487
A95: <- Tryck på plus för att ange kostnader för enskilda år
B96: Restvärde (kr)
B98: Beräkningar och resultat
C99: Alt A | D99: Alt B | E99: Alt C
B100: Nuvärde investering minus restvärde (kr) | C100: =C26-C96*(1+$C$6)^-$C$5 -> 0 | D100: =D26-D96*(1+$C$6)^-$C$5 -> 0 | E100: =E26-E96*(1+$C$6)^-$C$5 -> 0 | F100: Investering minus restvärde
B101: Nuvärde drift- och underhållskostnader (kr) | C101: =C32*$C$18+SUMPRODUCT(C33:C62,$F$33:$F$62) -> 0 | D101: =D32*$C$18+SUMPRODUCT(D33:D62,$F$33:$F$62) -> 0 | E101: =E32*$C$18+SUMPRODUCT(E33:E62,$F$33:$F$62) -> 0 | F101: Drift- och underhållskostnader
B102: Nuvärde övriga kostnader (kr) | C102: =C64*$C$18+SUMPRODUCT(C65:C94,$F$65:$F$94) -> 0 | D102: =D64*$C$18+SUMPRODUCT(D65:D94,$F$65:$F$94) -> 0 | E102: =E64*$C$18+SUMPRODUCT(E65:E94,$F$65:$F$94) -> 0 | F102: Övriga kostnader
B103: Nuvärde energikostnader (kr) | C103: =C28*$C$9*$C$19+C29*$C$12*$C$20+C30*$C$15*$C$21 -> 0 | D103: =D28*$C$9*$C$19+D29*$C$12*$C$20+D30*$C$15*$C$21 -> 0 | E103: =E28*$C$9*$C$19+E29*$C$12*$C$20+E30*$C$15*$C$21 -> 0 | F103: Energikostnader
B104: Livscykelkostnad, LCC (kr) | C104: =SUM(C100:C103) -> 0 | D104: =IF(SUM(D100:D103)=0,"-",SUM(D100:D103)) -> - | E104: =IF(SUM(E100:E103)=0,"-",SUM(E100:E103)) -> -
B107: Lönsamhetsbedömning av åtgärd B och C (jämfört mot Alt A)
B108: Rak återbetalningstid, payoff (år) | D108: =IF(AND(D26>$C$26,(D28-$C$28)*$C$9+(D29-$C$29)*$C$12+(D30-$C$30)*$C$15+(D32-$C$32)+(D64-$C$64)>0),"återbetalas ej",IF(OR(D104="-",D26<$C$26),"-",(D26-$C$26)/(($C$28-D28)*$C$9+($C$29-D29)*$C$12+($C$30-D30)*$C$15+($C$32-D32)+($C$64-D64)))) -> - | E108: =IF(AND(E26>$C$26,(E28-$C$28)*$C$9+(E29-$C$29)*$C$12+(E30-$C$30)*$C$15+(E32-$C$32)+(E64-$C$64)>0),"återbetalas ej",IF(OR(E104="-",E26<$C$26),"-",(E26-$C$26)/(($C$28-E28)*$C$9+($C$29-E29)*$C$12+($C$30-E30)*$C$15+($C$32-E32)+($C$64-E64)))) -> -
B109: Nettonuvärde av investering, Minskning LCC (kr) | D109: =IF(D104="-","-",C104-D104) -> - | E109: =IF(E104="-","-",C104-E104) -> -
B110: =IF(OR(AND(ISNUMBER(D104),D26<C26),AND(ISNUMBER(E104),E26<C26)),"!!! För att uträkningen av återbetalningstid ska ge ett meningsfullt resultat behöver Alt A vara det alternativ som har lägst investeringskostnad !!!","") -> 
B112: Summering av resultat
B113: Av Alt A, B och C har | C113: =IF(SMALL(C104:E104,1)=C104,C24,IF(D104<E104,D24,E24)) -> Alt A | D113: lägst LCC-kostnad
B116: Jämförelse LCC
B132: Jämförelse Återbetalningstid
B147: Känslighetsanalys
F149: Alt A | G149: Alt B
E150: 0.001 | F150: =C$26-C$96*(1+$E150)^-$C$5+C$32*$J174+SUMPRODUCT(C$33:C$62,$O$174:$O$203)+C$64*$J174+SUMPRODUCT(C$65:C$94,$O$174:$O$203)+C$28*$C$9*$K174+C$29*$C$12*$L174+C$30*$C$15*$M174 -> 0 | G150: =D$26-D$96*(1+$E150)^-$C$5+D$32*$J174+SUMPRODUCT(D$33:D$62,$O$174:$O$203)+D$64*$J174+SUMPRODUCT(D$65:D$94,$O$174:$O$203)+D$28*$C$9*$K174+D$29*$C$12*$L174+D$30*$C$15*$M174 -> 0
E151: 0.02 | F151: =C$26-C$96*(1+$E151)^-$C$5+C$32*$J175+SUMPRODUCT(C$33:C$62,$P$174:$P$203)+C$64*$J175+SUMPRODUCT(C$65:C$94,$P$174:$P$203)+C$28*$C$9*$K175+C$29*$C$12*$L175+C$30*$C$15*$M175 -> 0 | G151: =D$26-D$96*(1+$E151)^-$C$5+D$32*$J175+SUMPRODUCT(D$33:D$62,$P$174:$P$203)+D$64*$J175+SUMPRODUCT(D$65:D$94,$P$174:$P$203)+D$28*$C$9*$K175+D$29*$C$12*$L175+D$30*$C$15*$M175 -> 0
E152: 0.04 | F152: =C$26-C$96*(1+$E152)^-$C$5+C$32*$J176+SUMPRODUCT(C$33:C$62,$Q$174:$Q$203)+C$64*$J176+SUMPRODUCT(C$65:C$94,$Q$174:$Q$203)+C$28*$C$9*$K176+C$29*$C$12*$L176+C$30*$C$15*$M176 -> 0 | G152: =D$26-D$96*(1+$E152)^-$C$5+D$32*$J176+SUMPRODUCT(D$33:D$62,$Q$174:$Q$203)+D$64*$J176+SUMPRODUCT(D$65:D$94,$Q$174:$Q$203)+D$28*$C$9*$K176+D$29*$C$12*$L176+D$30*$C$15*$M176 -> 0
E153: 0.06 | F153: =C$26-C$96*(1+$E153)^-$C$5+C$32*$J177+SUMPRODUCT(C$33:C$62,$R$174:$R$203)+C$64*$J177+SUMPRODUCT(C$65:C$94,$R$174:$R$203)+C$28*$C$9*$K177+C$29*$C$12*$L177+C$30*$C$15*$M177 -> 0 | G153: =D$26-D$96*(1+$E153)^-$C$5+D$32*$J177+SUMPRODUCT(D$33:D$62,$R$174:$R$203)+D$64*$J177+SUMPRODUCT(D$65:D$94,$R$174:$R$203)+D$28*$C$9*$K177+D$29*$C$12*$L177+D$30*$C$15*$M177 -> 0
E154: 0.08 | F154: =C$26-C$96*(1+$E154)^-$C$5+C$32*$J178+SUMPRODUCT(C$33:C$62,$S$174:$S$203)+C$64*$J178+SUMPRODUCT(C$65:C$94,$S$174:$S$203)+C$28*$C$9*$K178+C$29*$C$12*$L178+C$30*$C$15*$M178 -> 0 | G154: =D$26-D$96*(1+$E154)^-$C$5+D$32*$J178+SUMPRODUCT(D$33:D$62,$S$174:$S$203)+D$64*$J178+SUMPRODUCT(D$65:D$94,$S$174:$S$203)+D$28*$C$9*$K178+D$29*$C$12*$L178+D$30*$C$15*$M178 -> 0
E155: 0.1 | F155: =C$26-C$96*(1+$E155)^-$C$5+C$32*$J179+SUMPRODUCT(C$33:C$62,$T$174:$T$203)+C$64*$J179+SUMPRODUCT(C$65:C$94,$T$174:$T$203)+C$28*$C$9*$K179+C$29*$C$12*$L179+C$30*$C$15*$M179 -> 0 | G155: =D$26-D$96*(1+$E155)^-$C$5+D$32*$J179+SUMPRODUCT(D$33:D$62,$T$174:$T$203)+D$64*$J179+SUMPRODUCT(D$65:D$94,$T$174:$T$203)+D$28*$C$9*$K179+D$29*$C$12*$L179+D$30*$C$15*$M179 -> 0
E156: 0.12 | F156: =C$26-C$96*(1+$E156)^-$C$5+C$32*$J180+SUMPRODUCT(C$33:C$62,$U$174:$U$203)+C$64*$J180+SUMPRODUCT(C$65:C$94,$U$174:$U$203)+C$28*$C$9*$K180+C$29*$C$12*$L180+C$30*$C$15*$M180 -> 0 | G156: =D$26-D$96*(1+$E156)^-$C$5+D$32*$J180+SUMPRODUCT(D$33:D$62,$U$174:$U$203)+D$64*$J180+SUMPRODUCT(D$65:D$94,$U$174:$U$203)+D$28*$C$9*$K180+D$29*$C$12*$L180+D$30*$C$15*$M180 -> 0
E157: 0.14 | F157: =C$26-C$96*(1+$E157)^-$C$5+C$32*$J181+SUMPRODUCT(C$33:C$62,$V$174:$V$203)+C$64*$J181+SUMPRODUCT(C$65:C$94,$V$174:$V$203)+C$28*$C$9*$K181+C$29*$C$12*$L181+C$30*$C$15*$M181 -> 0 | G157: =D$26-D$96*(1+$E157)^-$C$5+D$32*$J181+SUMPRODUCT(D$33:D$62,$V$174:$V$203)+D$64*$J181+SUMPRODUCT(D$65:D$94,$V$174:$V$203)+D$28*$C$9*$K181+D$29*$C$12*$L181+D$30*$C$15*$M181 -> 0
B164: Testa gärna också att variera andra osäkra indata, t.ex. investeringskostnader eller energipriser!
H173: Alt C
H174: =E$26-E$96*(1+$E150)^-$C$5+E$32*$J174+SUMPRODUCT(E$33:E$62,$O$174:$O$203)+E$64*$J174+SUMPRODUCT(E$65:E$94,$O$174:$O$203)+E$28*$C$9*$K174+E$29*$C$12*$L174+E$30*$C$15*$M174 -> 0 | J174: =(1-(1+$E150)^-$C$5)/$E150 -> 19.79153119 | K174: =IF($E150=$C$10,$C$5,((1-((1+$C$10)/(1+$E150))^$C$5)/((1+$E150)/(1+$C$10)-1))) -> 19.79153119 | L174: =IF($E150=$C$13,$C$5,((1-((1+$C$13)/(1+$E150))^$C$5)/((1+$E150)/(1+$C$13)-1))) -> 19.79153119 | M174: =IF($E150=$C$16,$C$5,((1-((1+$C$16)/(1+$E150))^$C$5)/((1+$E150)/(1+$C$16)-1))) -> 19.79153119 | O174: =(1+$E$150)^-1 -> 0.999000999 | P174: =(1+$E$151)^-1 -> 0.9803921569 | Q174: =(1+$E$152)^-1 -> 0.9615384615 | R174: =(1+$E$153)^-1 -> 0.9433962264 | S174: =(1+$E$154)^-1 -> 0.9259259259 | T174: =(1+$E$155)^-1 -> 0.9090909091 | U174: =(1+$E$156)^-1 -> 0.8928571429 | V174: =(1+$E$157)^-1 -> 0.8771929825
H175: =E$26-E$96*(1+$E151)^-$C$5+E$32*$J175+SUMPRODUCT(E$33:E$62,$P$174:$P$203)+E$64*$J175+SUMPRODUCT(E$65:E$94,$P$174:$P$203)+E$28*$C$9*$K175+E$29*$C$12*$L175+E$30*$C$15*$M175 -> 0 | J175: 16.35143334 | K175: 16.35143334 | L175: 16.35143334 | M175: 16.35143334 | O175: =(1+$E$150)^-2 -> 0.998002996 | P175: =(1+$E$151)^-2 -> 0.9611687812 | Q175: =(1+$E$152)^-2 -> 0.924556213 | R175: =(1+$E$153)^-2 -> 0.88999644 | S175: =(1+$E$154)^-2 -> 0.8573388203 | T175: =(1+$E$155)^-2 -> 0.826446281 | U175: =(1+$E$156)^-2 -> 0.7971938776 | V175: =(1+$E$157)^-2 -> 0.7694675285
H176: =E$26-E$96*(1+$E152)^-$C$5+E$32*$J176+SUMPRODUCT(E$33:E$62,$Q$174:$Q$203)+E$64*$J176+SUMPRODUCT(E$65:E$94,$Q$174:$Q$203)+E$28*$C$9*$K176+E$29*$C$12*$L176+E$30*$C$15*$M176 -> 0 | J176: 13.59032634 | K176: 13.59032634 | L176: 13.59032634 | M176: 13.59032634 | O176: =(1+$E$150)^-$B35 -> 0.99700599 | P176: =(1+$E$151)^-$B35 -> 0.9423223345 | Q176: =(1+$E$152)^-$B35 -> 0.8889963587 | R176: =(1+$E$153)^-$B35 -> 0.839619283 | S176: =(1+$E$154)^-$B35 -> 0.793832241 | T176: =(1+$E$155)^-$B35 -> 0.7513148009 | U176: =(1+$E$156)^-$B35 -> 0.7117802478 | V176: =(1+$E$157)^-$B35 -> 0.6749715162
H177: =E$26-E$96*(1+$E153)^-$C$5+E$32*$J177+SUMPRODUCT(E$33:E$62,$R$174:$R$203)+E$64*$J177+SUMPRODUCT(E$65:E$94,$R$174:$R$203)+E$28*$C$9*$K177+E$29*$C$12*$L177+E$30*$C$15*$M177 -> 0 | J177: 11.46992122 | K177: 11.46992122 | L177: 11.46992122 | M177: 11.46992122 | O177: 0.99600998 | P177: 0.923845426 | Q177: 0.854804191 | R177: 0.7920936632 | S177: 0.7350298528 | T177: 0.6830134554 | U177: 0.6355180784 | V177: 0.5920802774
H178: =E$26-E$96*(1+$E154)^-$C$5+E$32*$J178+SUMPRODUCT(E$33:E$62,$S$174:$S$203)+E$64*$J178+SUMPRODUCT(E$65:E$94,$S$174:$S$203)+E$28*$C$9*$K178+E$29*$C$12*$L178+E$30*$C$15*$M178 -> 0 | J178: 9.818147407 | K178: 9.818147407 | L178: 9.818147407 | M178: 9.818147407 | O178: 0.9950149651 | P178: 0.9057308098 | Q178: 0.8219271068 | R178: 0.7472581729 | S178: 0.680583197 | T178: 0.6209213231 | U178: 0.5674268557 | V178: 0.5193686644
H179: =E$26-E$96*(1+$E155)^-$C$5+E$32*$J179+SUMPRODUCT(E$33:E$62,$T$174:$T$203)+E$64*$J179+SUMPRODUCT(E$65:E$94,$T$174:$T$203)+E$28*$C$9*$K179+E$29*$C$12*$L179+E$30*$C$15*$M179 -> 0 | J179: 8.51356372 | K179: 8.51356372 | L179: 8.51356372 | M179: 8.51356372 | O179: 0.9940209441 | P179: 0.8879713822 | Q179: 0.7903145257 | R179: 0.7049605404 | S179: 0.6301696269 | T179: 0.5644739301 | U179: 0.5066311212 | V179: 0.4555865477
H180: =E$26-E$96*(1+$E156)^-$C$5+E$32*$J180+SUMPRODUCT(E$33:E$62,$U$174:$U$203)+E$64*$J180+SUMPRODUCT(E$65:E$94,$U$174:$U$203)+E$28*$C$9*$K180+E$29*$C$12*$L180+E$30*$C$15*$M180 -> 0 | J180: 7.469443624 | K180: 7.469443624 | L180: 7.469443624 | M180: 7.469443624 | O180: 0.9930279162 | P180: 0.8705601786 | Q180: 0.7599178132 | R180: 0.6650571136 | S180: 0.5834903953 | T180: 0.5131581182 | U180: 0.4523492153 | V180: 0.3996373225
H181: =E$26-E$96*(1+$E157)^-$C$5+E$32*$J181+SUMPRODUCT(E$33:E$62,$V$174:$V$203)+E$64*$J181+SUMPRODUCT(E$65:E$94,$V$174:$V$203)+E$28*$C$9*$K181+E$29*$C$12*$L181+E$30*$C$15*$M181 -> 0 | J181: 6.623130552 | K181: 6.623130552 | L181: 6.623130552 | M181: 6.623130552 | O181: 0.9920358803 | P181: 0.8534903712 | Q181: 0.730690205 | R181: 0.6274123713 | S181: 0.5402688845 | T181: 0.4665073802 | U181: 0.403883228 | V181: 0.3505590549
O182: 0.9910448355 | P182: 0.8367552659 | Q182: 0.7025867356 | R182: 0.5918984635 | S182: 0.5002489671 | T182: 0.4240976184 | U182: 0.360610025 | V182: 0.3075079429
O183: 0.9900547807 | P183: 0.8203482999 | Q183: 0.6755641688 | R183: 0.5583947769 | S183: 0.4631934881 | T183: 0.3855432894 | U183: 0.3219732366 | V183: 0.2697438095
O184: 0.989065715 | P184: 0.8042630391 | Q184: 0.6495809316 | R184: 0.5267875254 | S184: 0.4288828593 | T184: 0.3504938995 | U184: 0.2874761041 | V184: 0.2366173768
O185: 0.9880776374 | P185: 0.7884931756 | Q185: 0.6245970496 | R185: 0.4969693636 | S185: 0.3971137586 | T185: 0.3186308177 | U185: 0.2566750929 | V185: 0.2075591024
O186: 0.9870905468 | P186: 0.7730325251 | Q186: 0.6005740861 | R186: 0.4688390222 | S186: 0.3676979247 | T186: 0.2896643797 | U186: 0.2291741901 | V186: 0.1820693881
O187: 0.9861044424 | P187: 0.7578750246 | Q187: 0.5774750828 | R187: 0.4423009644 | S187: 0.3404610414 | T187: 0.2633312543 | U187: 0.2046198126 | V187: 0.1597099896
O188: 0.985119323 | P188: 0.74301473 | Q188: 0.5552645027 | R188: 0.4172650607 | S188: 0.315241705 | T188: 0.2393920494 | U188: 0.1826962613 | V188: 0.1400964821
O189: 0.9841351879 | P189: 0.7284458137 | Q189: 0.5339081757 | R189: 0.3936462837 | S189: 0.2918904676 | T189: 0.2176291358 | U189: 0.1631216618 | V189: 0.1228916509
O190: 0.9831520358 | P190: 0.7141625625 | Q190: 0.5133732459 | R190: 0.3713644186 | S190: 0.2702689514 | T190: 0.1978446689 | U190: 0.1456443409 | V190: 0.1077996938
O191: 0.982169866 | P191: 0.700159375 | Q191: 0.493628121 | R191: 0.3503437911 | S191: 0.2502490291 | T191: 0.1798587899 | U191: 0.1300395901 | V191: 0.09456113492
O192: 0.9811886773 | P192: 0.6864307598 | Q192: 0.474642424 | R192: 0.3305130105 | S192: 0.231712064 | T192: 0.1635079908 | U192: 0.1161067769 | V192: 0.08294836396
O193: 0.9802084688 | P193: 0.6729713331 | Q193: 0.4563869462 | R193: 0.3118047269 | S193: 0.2145482074 | T193: 0.148643628 | U193: 0.1036667651 | V193: 0.07276172277
O194: 0.9792292396 | P194: 0.6597758168 | Q194: 0.4388336021 | R194: 0.2941554027 | S194: 0.1986557476 | T194: 0.1351305709 | U194: 0.09255961168 | V194: 0.06382607261
O195: 0.9782509886 | P195: 0.6468390361 | Q195: 0.4219553867 | R195: 0.2775050969 | S195: 0.183940507 | T195: 0.1228459736 | U195: 0.08264251043 | V195: 0.05598778299
O196: 0.9772737149 | P196: 0.6341559177 | Q196: 0.4057263333 | R196: 0.2617972612 | S196: 0.1703152843 | T196: 0.1116781578 | U196: 0.07378795574 | V196: 0.04911209034
O197: 0.9762974175 | P197: 0.6217214879 | Q197: 0.3901214743 | R197: 0.2469785483 | S197: 0.1576993373 | T197: 0.101525598 | U197: 0.06588210334 | V197: 0.043080781
O198: 0.9753220954 | P198: 0.6095308705 | Q198: 0.3751168023 | R198: 0.2329986305 | S198: 0.1460179049 | T198: 0.09229599818 | U198: 0.05882330655 | V198: 0.03779015877
O199: 0.9743477476 | P199: 0.5975792848 | Q199: 0.3606892329 | R199: 0.2198100288 | S199: 0.1352017638 | T199: 0.08390545289 | U199: 0.05252080942 | V199: 0.03314926208
O200: 0.9733743732 | P200: 0.585862044 | Q200: 0.3468165701 | R200: 0.2073679517 | S200: 0.1251868183 | T200: 0.07627768444 | U200: 0.04689357984 | V200: 0.02907830007
O201: 0.9724019713 | P201: 0.5743745529 | Q201: 0.3334774713 | R201: 0.1956301431 | S201: 0.1159137207 | T201: 0.06934334949 | U201: 0.04186926771 | V201: 0.02550728076
O202: 0.9714305407 | P202: 0.5631123068 | Q202: 0.3206514147 | R202: 0.1845567388 | S202: 0.1073275192 | T202: 0.06303940863 | U202: 0.03738327475 | V202: 0.02237480769
O203: 0.9704600806 | P203: 0.552070889 | Q203: 0.308318668 | R203: 0.1741101309 | S203: 0.09937733255 | T203: 0.0573085533 | U203: 0.03337792388 | V203: 0.01962702429

Sheet Förklaringar
A1: Förklaringar
A2: Här presenteras korta förklaringar av de olika parametrarna i LCC-kalkylen. För en mer utförlig förklaring och beskrivningar av de exempel som finns inlagda på separata flikar hänvisas till den mer omfattande manualen som hör till verktyget. Manualen kan laddas ner från samma ställe som verktyget.
A3: Indata anges i orangefärgade celler, och det är enbart dessa som går att ändra i.
A4: För beräkningarna av livscykelkostnad (LCC) och återbetalningstid behövs följande uppgifter:
A5: Indata - parameter | B5: Förklaring
A6: Kalkylperiod | B6: Utrustningens faktiska brukstid/användningstid, ekonomiska livslängd eller uppskattade tekniska livslängd.
A7: Kalkylränta | B7: Kalkylräntan används för att räkna om betalningar som görs i framtiden till dagens penningvärde. Här anges den reala kalkylräntan, dvs kalkylränta utöver inflation (real kalkylränta ≈ nominell kalkylränta - inflation). Vilken kalkylränta man ska använda bestäms i allmänhet av den lägsta avkastning som är acceptabel för den som gör investeringen.
A8: Energipris för olika energislag | B8: Aktuell pris som företaget betalar för t.ex. el, fjärrvärme eller annat energislag vars användning påverkas genom investeringen. Både energislag och pris anges av användaren.
A9: Förväntad real årlig energiprisförändring | B9: Real årlig förändring av energipriset utöver inflationen (real prisförändring ≈ nominell prisförändring - inflation)
A10: Investeringskostnad | B10: Initial engångskostnad i samband med inköp och installation.
A11: Årligt energibehov för olika energislag | B11: Årligt energibehov. Kan uppskattas utifrån effekt och drifttid för utrustningen (energibehov = effekt x drifttid). För lönsamhetsberäkning (återbetalningstid och nettonuvärde) behöver endast energbehov som skiljer mellan alternativen anges.
A12: Drift- och underhållskostnader | B12: Kostnader för underhåll och skötsel anges i normalfallet som en fast årlig kostnad. I särskilda fall kan kostnader för enskilda år anges. (Kostnaderna ska anges utan inflation,dvs i dagens penningvärde, eftersom det är den reala kalkylräntan som används vid nuvärdesberäkningarna)
A13: Övriga årliga kostnader | B13: Övriga kostnader som skiljer sig mellan alternativen. I övriga kostnader kan eventuella mervärden av en energieffektiviseringsåtgärd anges, om de är möjliga att sätta ett monetärt värde på. Eftersom man alltid jämför två olika alternativ kan det vara lättare att ange skillnaden mellan alternativen istället för de absoluta kostnaderna. Övriga kostnader kan också inkludera t.ex. eventuella miljökostnader. Här kan man också lägga in fasta energiavgifter (t.ex. fast elnätsavgift).
A14: Restvärde | B14: Eventuellt återstående ekonomiskt värde efter brukstiden.
A16: Resultat | B16: Förklaring
A17: Livscykelkostnad, LCC | B17: Huvudresultatet av LCC-kalkylen är den totala livscykelkostnaden för olika alternativ. Livscykelkostnaden beräknas som summan av nuvärdet av alla kostnader.
A18: Lönsamhetsbedömningar | B18: För lönsamhetsberäkningar (med återbetalningstid eller nuvärde av investering) antas Alt A vara ett grundalternativ, som motsvarar att man inte gör någonting eller att man investerar i konventionell eller befintlig utrustning.Sedan beräknas lönsamheten i att investera i Alt B eller C istället för att välja Alt A.
A19: Rak återbetalningstid | B19: Återbetalningstiden är den tid i år det tar innan den högre investeringen för Alt B resp C jämfört med Alt A har betalat igen sig i form av lägre driftkostnader. För att uträkningen ska ge ett meningsfullt resultat behöver därför Alt A vara det alternativ som har lägst investeringskostnad. Återbetalningstiden, som den beräknas i det här verktyget, tar ej hänsyn till följande: - kalkylränta - eventuell energiprisökning - restvärde - underhåll eller övriga kostnader angivna för enskilda år
A20: Nettonuvärde av investering | B20: Nettonuvärdet av en investering är ett lönsamhetsmått, som bygger på samma beräkningsprinciper som LCC-kalkylen. Nettonuvärdet av att investera i Alt B resp C istället för att välja Alt A motsvaras av minskningen i LCC-kostnad. En investering bedöms som lönsam om nettonuvärdet är större än noll.

Sheet Exempel (LCC-jämförelse pumpar)
A1: Lönsamhetsberäkningar med hjälp av LCC och återbetalningstid
B3: Generella indata
B5: Kalkylperiod (år) | C5: 20
B6: Kalkylränta (%) | C6: 0.06
A8: <- Tror du att energipriserna kommer att förändras? Tryck på plus för att ange energiprisförändring <- | B8: Energislag 1 | C8: El
B9: Energipris energislag (kr/kWh) | C9: 1
B10: Förväntad real årlig energiprisförändring (%)
B11: Energislag 2
B12: Energipris energislag (kr/kWh)
B13: Förväntad real årlig energiprisförändring (%)
B14: Energislag 3
B15: Energipris energislag (kr/kWh)
B16: Förväntad real årlig energiprisförändring (%)
B18: Nusummefaktor | C18: =IF($C$6=0,$C$5,(1-(1+$C$6)^-$C$5)/$C$6) -> 11.46992122
B19: Nusummefaktor energislag 1 | C19: =IF($C$6=$C$10,$C$5,((1-((1+$C$10)/(1+$C$6))^$C$5)/((1+$C$6)/(1+$C$10)-1))) -> 11.46992122
B20: Nusummefaktor energislag 2 | C20: =IF($C$6=$C$13,$C$5,((1-((1+$C$13)/(1+$C$6))^$C$5)/((1+$C$6)/(1+$C$13)-1))) -> 11.46992122
B21: Nusummefaktor energislag 3 | C21: =IF($C$6=$C$16,$C$5,((1-((1+$C$16)/(1+$C$6))^$C$5)/((1+$C$6)/(1+$C$16)-1))) -> 11.46992122
B23: Data för olika åtgärder/utrustningsalternativ
C24: Alt A | D24: Alt B | E24: Alt C
B25: Åtgärd/utrustningsalternativ | C25: Pump A | D25: Pump B
B26: Investeringskostnad (kr) | C26: 8000 | D26: 12000
B28: Årligt energibehov, energislag 1 (kWh) | C28: 8000 | D28: 6000
B29: Årligt energibehov, energislag 2 (kWh)
B30: Årligt energibehov, energislag 3 (kWh)
B32: Drift- och underhållskostnad (kr/år) | C32: 250 | D32: 600
B33: Underhållskostnad år 1 | F33: =(1+$C$6)^-1 -> 0.9433962264
B34: år 2 | F34: =(1+$C$6)^-2 -> 0.88999644
B35: 3 | F35: =(1+$C$6)^-B35 -> 0.839619283
B36: 4 | F36: =(1+$C$6)^-B36 -> 0.7920936632
B37: 5 | F37: 0.7472581729
B38: 6 | F38: 0.7049605404
B39: 7 | F39: 0.6650571136
B40: 8 | F40: 0.6274123713
B41: 9 | F41: 0.5918984635
B42: 10 | F42: 0.5583947769
B43: 11 | F43: 0.5267875254
B44: 12 | F44: 0.4969693636
B45: 13 | F45: 0.4688390222
B46: 14 | F46: 0.4423009644
B47: 15 | F47: 0.4172650607
B48: 16 | F48: 0.3936462837
B49: 17 | F49: 0.3713644186
B50: 18 | F50: 0.3503437911
B51: 19 | F51: 0.3305130105
B52: 20 | F52: 0.3118047269
B53: 21 | F53: 0.2941554027
B54: 22 | F54: 0.2775050969
B55: 23 | F55: 0.2617972612
B56: 24 | F56: 0.2469785483
B57: 25 | F57: 0.2329986305
B58: 26 | F58: 0.2198100288
B59: 27 | F59: 0.2073679517
B60: 28 | F60: 0.1956301431
B61: 29 | F61: 0.1845567388
B62: 30 | F62: 0.1741101309
A63: <- Tryck på plus för att ange kostnader för enskilda år
B64: Övriga årliga kostnader (kr/år) | C64: 0 | D64: 0
B65: Övriga kostnader år 1 | F65: =(1+$C$6)^-1 -> 0.9433962264
B66: år 2 | F66: =(1+$C$6)^-2 -> 0.88999644
B67: 3 | F67: =(1+$C$6)^-B67 -> 0.839619283
B68: 4 | F68: =(1+$C$6)^-B68 -> 0.7920936632
B69: 5 | F69: 0.7472581729
B70: 6 | F70: 0.7049605404
B71: 7 | F71: 0.6650571136
B72: 8 | F72: 0.6274123713
B73: 9 | F73: 0.5918984635
B74: 10 | F74: 0.5583947769
B75: 11 | F75: 0.5267875254
B76: 12 | F76: 0.4969693636
B77: 13 | F77: 0.4688390222
B78: 14 | F78: 0.4423009644
B79: 15 | F79: 0.4172650607
B80: 16 | F80: 0.3936462837
B81: 17 | F81: 0.3713644186
B82: 18 | F82: 0.3503437911
B83: 19 | F83: 0.3305130105
B84: 20 | F84: 0.3118047269
B85: 21 | F85: 0.2941554027
B86: 22 | F86: 0.2775050969
B87: 23 | F87: 0.2617972612
B88: 24 | F88: 0.2469785483
B89: 25 | F89: 0.2329986305
B90: 26 | F90: 0.2198100288
B91: 27 | F91: 0.2073679517
B92: 28 | F92: 0.1956301431
B93: 29 | F93: 0.1845567388
B94: 30 | F94: 0.1741101309
A95: <- Tryck på plus för att ange kostnader för enskilda år
B96: Restvärde (kr) | C96: 0 | D96: 0
B98: Beräkningar och resultat
C99: Alt A | D99: Alt B | E99: Alt C
B100: Nuvärde investering minus restvärde (kr) | C100: =C26-C96*(1+$C$6)^-$C$5 -> 8000 | D100: =D26-D96*(1+$C$6)^-$C$5 -> 12000 | E100: 0 | F100: Investering minus restvärde
B101: Nuvärde drift- och underhållskostnader (kr) | C101: =C32*$C$18+SUMPRODUCT(C33:C62,$F$33:$F$62) -> 2867.480305 | D101: =D32*$C$18+SUMPRODUCT(D33:D62,$F$33:$F$62) -> 6881.952731 | E101: =E32*$C$18+SUMPRODUCT(E33:E62,$F$33:$F$62) -> 0 | F101: Drift- och underhållskostnader
B102: Nuvärde övriga kostnader (kr) | C102: =C64*$C$18+SUMPRODUCT(C65:C94,$F$65:$F$94) -> 0 | D102: =D64*$C$18+SUMPRODUCT(D65:D94,$F$65:$F$94) -> 0 | E102: =E64*$C$18+SUMPRODUCT(E65:E94,$F$65:$F$94) -> 0 | F102: Övriga kostnader
B103: Nuvärde energikostnader (kr) | C103: =C28*$C$9*$C$19+C29*$C$12*$C$20+C30*$C$15*$C$21 -> 91759.36975 | D103: =D28*$C$9*$C$19+D29*$C$12*$C$20+D30*$C$15*$C$21 -> 68819.52731 | E103: =E28*$C$9*$C$19+E29*$C$12*$C$20+E30*$C$15*$C$21 -> 0 | F103: Energikostnader
B104: Livscykelkostnad, LCC (kr) | C104: =SUM(C100:C103) -> 102626.8501 | D104: =IF(SUM(D100:D103)=0,"-",SUM(D100:D103)) -> 87701.48004 | E104: =IF(SUM(E100:E103)=0,"-",SUM(E100:E103)) -> -
B107: Lönsamhetsbedömning av åtgärd B och C (jämfört mot Alt A)
B108: Rak återbetalningstid, payoff (år) | D108: =IF(AND(D26>$C$26,(D28-$C$28)*$C$9+(D29-$C$29)*$C$12+(D30-$C$30)*$C$15+(D32-$C$32)+(D64-$C$64)>0),"återbetalas ej",IF(OR(D104="-",D26<$C$26),"-",(D26-$C$26)/(($C$28-D28)*$C$9+($C$29-D29)*$C$12+($C$30-D30)*$C$15+($C$32-D32)+($C$64-D64)))) -> 2.424242424 | E108: =IF(AND(E26>$C$26,(E28-$C$28)*$C$9+(E29-$C$29)*$C$12+(E30-$C$30)*$C$15+(E32-$C$32)+(E64-$C$64)>0),"återbetalas ej",IF(OR(E104="-",E26<$C$26),"-",(E26-$C$26)/(($C$28-E28)*$C$9+($C$29-E29)*$C$12+($C$30-E30)*$C$15+($C$32-E32)+($C$64-E64)))) -> -
B109: Nettonuvärde av investering, Minskning LCC (kr) | D109: =IF(D104="-","-",C104-D104) -> 14925.37001 | E109: =IF(E104="-","-",C104-E104) -> -
B110: =IF(OR(AND(ISNUMBER(D104),D26<C26),AND(ISNUMBER(E104),E26<C26)),"!!! För att uträkningen av återbetalningstid ska ge ett meningsfullt resultat behöver Alt A vara det alternativ som har lägst investeringskostnad !!!","") -> 
B112: Summering av resultat
B113: Av Alt A, B och C har | C113: =IF(SMALL(C104:E104,1)=C104,C24,IF(D104<E104,D24,E24)) -> Alt B | D113: lägst LCC-kostnad
B117: Jämförelse LCC
B133: Jämförelse Återbetalningstid
B148: Känslighetsanalys
F150: Alt A | G150: Alt B
E151: 0.001 | F151: =C$26-C$96*(1+$E151)^-$C$5+C$32*$J174+SUMPRODUCT(C$33:C$62,$O$174:$O$203)+C$64*$J174+SUMPRODUCT(C$65:C$94,$O$174:$O$203)+C$28*$C$9*$K174+C$29*$C$12*$L174+C$30*$C$15*$M174 -> 171280.1323 | G151: =D$26-D$96*(1+$E151)^-$C$5+D$32*$J174+SUMPRODUCT(D$33:D$62,$O$174:$O$203)+D$64*$J174+SUMPRODUCT(D$65:D$94,$O$174:$O$203)+D$28*$C$9*$K174+D$29*$C$12*$L174+D$30*$C$15*$M174 -> 142624.1058
E152: 0.02 | F152: =C$26-C$96*(1+$E152)^-$C$5+C$32*$J175+SUMPRODUCT(C$33:C$62,$P$174:$P$203)+C$64*$J175+SUMPRODUCT(C$65:C$94,$P$174:$P$203)+C$28*$C$9*$K175+C$29*$C$12*$L175+C$30*$C$15*$M175 -> 142899.3251 | G152: =D$26-D$96*(1+$E152)^-$C$5+D$32*$J175+SUMPRODUCT(D$33:D$62,$P$174:$P$203)+D$64*$J175+SUMPRODUCT(D$65:D$94,$P$174:$P$203)+D$28*$C$9*$K175+D$29*$C$12*$L175+D$30*$C$15*$M175 -> 119919.4601
E153: 0.04 | F153: =C$26-C$96*(1+$E153)^-$C$5+C$32*$J176+SUMPRODUCT(C$33:C$62,$Q$174:$Q$203)+C$64*$J176+SUMPRODUCT(C$65:C$94,$Q$174:$Q$203)+C$28*$C$9*$K176+C$29*$C$12*$L176+C$30*$C$15*$M176 -> 120120.1923 | G153: =D$26-D$96*(1+$E153)^-$C$5+D$32*$J176+SUMPRODUCT(D$33:D$62,$Q$174:$Q$203)+D$64*$J176+SUMPRODUCT(D$65:D$94,$Q$174:$Q$203)+D$28*$C$9*$K176+D$29*$C$12*$L176+D$30*$C$15*$M176 -> 101696.1539
E154: 0.06 | F154: =C$26-C$96*(1+$E154)^-$C$5+C$32*$J177+SUMPRODUCT(C$33:C$62,$R$174:$R$203)+C$64*$J177+SUMPRODUCT(C$65:C$94,$R$174:$R$203)+C$28*$C$9*$K177+C$29*$C$12*$L177+C$30*$C$15*$M177 -> 102626.8501 | G154: =D$26-D$96*(1+$E154)^-$C$5+D$32*$J177+SUMPRODUCT(D$33:D$62,$R$174:$R$203)+D$64*$J177+SUMPRODUCT(D$65:D$94,$R$174:$R$203)+D$28*$C$9*$K177+D$29*$C$12*$L177+D$30*$C$15*$M177 -> 87701.48004
E155: 0.08 | F155: =C$26-C$96*(1+$E155)^-$C$5+C$32*$J178+SUMPRODUCT(C$33:C$62,$S$174:$S$203)+C$64*$J178+SUMPRODUCT(C$65:C$94,$S$174:$S$203)+C$28*$C$9*$K178+C$29*$C$12*$L178+C$30*$C$15*$M178 -> 88999.71611 | G155: =D$26-D$96*(1+$E155)^-$C$5+D$32*$J178+SUMPRODUCT(D$33:D$62,$S$174:$S$203)+D$64*$J178+SUMPRODUCT(D$65:D$94,$S$174:$S$203)+D$28*$C$9*$K178+D$29*$C$12*$L178+D$30*$C$15*$M178 -> 76799.77289
E156: 0.1 | F156: =C$26-C$96*(1+$E156)^-$C$5+C$32*$J179+SUMPRODUCT(C$33:C$62,$T$174:$T$203)+C$64*$J179+SUMPRODUCT(C$65:C$94,$T$174:$T$203)+C$28*$C$9*$K179+C$29*$C$12*$L179+C$30*$C$15*$M179 -> 78236.90069 | G156: =D$26-D$96*(1+$E156)^-$C$5+D$32*$J179+SUMPRODUCT(D$33:D$62,$T$174:$T$203)+D$64*$J179+SUMPRODUCT(D$65:D$94,$T$174:$T$203)+D$28*$C$9*$K179+D$29*$C$12*$L179+D$30*$C$15*$M179 -> 68189.52055
E157: 0.12 | F157: =C$26-C$96*(1+$E157)^-$C$5+C$32*$J180+SUMPRODUCT(C$33:C$62,$U$174:$U$203)+C$64*$J180+SUMPRODUCT(C$65:C$94,$U$174:$U$203)+C$28*$C$9*$K180+C$29*$C$12*$L180+C$30*$C$15*$M180 -> 69622.9099 | G157: =D$26-D$96*(1+$E157)^-$C$5+D$32*$J180+SUMPRODUCT(D$33:D$62,$U$174:$U$203)+D$64*$J180+SUMPRODUCT(D$65:D$94,$U$174:$U$203)+D$28*$C$9*$K180+D$29*$C$12*$L180+D$30*$C$15*$M180 -> 61298.32792
E158: 0.14 | F158: =C$26-C$96*(1+$E158)^-$C$5+C$32*$J181+SUMPRODUCT(C$33:C$62,$V$174:$V$203)+C$64*$J181+SUMPRODUCT(C$65:C$94,$V$174:$V$203)+C$28*$C$9*$K181+C$29*$C$12*$L181+C$30*$C$15*$M181 -> 62640.82705 | G158: =D$26-D$96*(1+$E158)^-$C$5+D$32*$J181+SUMPRODUCT(D$33:D$62,$V$174:$V$203)+D$64*$J181+SUMPRODUCT(D$65:D$94,$V$174:$V$203)+D$28*$C$9*$K181+D$29*$C$12*$L181+D$30*$C$15*$M181 -> 55712.66164
B165: Testa gärna också att variera andra osäkra indata, t.ex. investeringskostnader eller energipriser!
H173: Alt C
H174: =E$26-E$96*(1+$E151)^-$C$5+E$32*$J174+SUMPRODUCT(E$33:E$62,$O$174:$O$203)+E$64*$J174+SUMPRODUCT(E$65:E$94,$O$174:$O$203)+E$28*$C$9*$K174+E$29*$C$12*$L174+E$30*$C$15*$M174 -> 0 | J174: =(1-(1+$E151)^-$C$5)/$E151 -> 19.79153119 | K174: =IF($E151=$C$10,$C$5,((1-((1+$C$10)/(1+$E151))^$C$5)/((1+$E151)/(1+$C$10)-1))) -> 19.79153119 | L174: =IF($E151=$C$13,$C$5,((1-((1+$C$13)/(1+$E151))^$C$5)/((1+$E151)/(1+$C$13)-1))) -> 19.79153119 | M174: =IF($E151=$C$16,$C$5,((1-((1+$C$16)/(1+$E151))^$C$5)/((1+$E151)/(1+$C$16)-1))) -> 19.79153119 | O174: =(1+$E$151)^-1 -> 0.999000999 | P174: =(1+$E$152)^-1 -> 0.9803921569 | Q174: =(1+$E$153)^-1 -> 0.9615384615 | R174: =(1+$E$154)^-1 -> 0.9433962264 | S174: =(1+$E$155)^-1 -> 0.9259259259 | T174: =(1+$E$156)^-1 -> 0.9090909091 | U174: =(1+$E$157)^-1 -> 0.8928571429 | V174: =(1+$E$158)^-1 -> 0.8771929825
H175: =E$26-E$96*(1+$E152)^-$C$5+E$32*$J175+SUMPRODUCT(E$33:E$62,$P$174:$P$203)+E$64*$J175+SUMPRODUCT(E$65:E$94,$P$174:$P$203)+E$28*$C$9*$K175+E$29*$C$12*$L175+E$30*$C$15*$M175 -> 0 | J175: 16.35143334 | K175: 16.35143334 | L175: 16.35143334 | M175: 16.35143334 | O175: =(1+$E$151)^-2 -> 0.998002996 | P175: =(1+$E$152)^-2 -> 0.9611687812 | Q175: =(1+$E$153)^-2 -> 0.924556213 | R175: =(1+$E$154)^-2 -> 0.88999644 | S175: =(1+$E$155)^-2 -> 0.8573388203 | T175: =(1+$E$156)^-2 -> 0.826446281 | U175: =(1+$E$157)^-2 -> 0.7971938776 | V175: =(1+$E$158)^-2 -> 0.7694675285
H176: =E$26-E$96*(1+$E153)^-$C$5+E$32*$J176+SUMPRODUCT(E$33:E$62,$Q$174:$Q$203)+E$64*$J176+SUMPRODUCT(E$65:E$94,$Q$174:$Q$203)+E$28*$C$9*$K176+E$29*$C$12*$L176+E$30*$C$15*$M176 -> 0 | J176: 13.59032634 | K176: 13.59032634 | L176: 13.59032634 | M176: 13.59032634 | O176: =(1+$E$151)^-$B35 -> 0.99700599 | P176: =(1+$E$152)^-$B35 -> 0.9423223345 | Q176: =(1+$E$153)^-$B35 -> 0.8889963587 | R176: =(1+$E$154)^-$B35 -> 0.839619283 | S176: =(1+$E$155)^-$B35 -> 0.793832241 | T176: =(1+$E$156)^-$B35 -> 0.7513148009 | U176: =(1+$E$157)^-$B35 -> 0.7117802478 | V176: =(1+$E$158)^-$B35 -> 0.6749715162
H177: =E$26-E$96*(1+$E154)^-$C$5+E$32*$J177+SUMPRODUCT(E$33:E$62,$R$174:$R$203)+E$64*$J177+SUMPRODUCT(E$65:E$94,$R$174:$R$203)+E$28*$C$9*$K177+E$29*$C$12*$L177+E$30*$C$15*$M177 -> 0 | J177: 11.46992122 | K177: 11.46992122 | L177: 11.46992122 | M177: 11.46992122 | O177: 0.99600998 | P177: 0.923845426 | Q177: 0.854804191 | R177: 0.7920936632 | S177: 0.7350298528 | T177: 0.6830134554 | U177: 0.6355180784 | V177: 0.5920802774
H178: =E$26-E$96*(1+$E155)^-$C$5+E$32*$J178+SUMPRODUCT(E$33:E$62,$S$174:$S$203)+E$64*$J178+SUMPRODUCT(E$65:E$94,$S$174:$S$203)+E$28*$C$9*$K178+E$29*$C$12*$L178+E$30*$C$15*$M178 -> 0 | J178: 9.818147407 | K178: 9.818147407 | L178: 9.818147407 | M178: 9.818147407 | O178: 0.9950149651 | P178: 0.9057308098 | Q178: 0.8219271068 | R178: 0.7472581729 | S178: 0.680583197 | T178: 0.6209213231 | U178: 0.5674268557 | V178: 0.5193686644
H179: =E$26-E$96*(1+$E156)^-$C$5+E$32*$J179+SUMPRODUCT(E$33:E$62,$T$174:$T$203)+E$64*$J179+SUMPRODUCT(E$65:E$94,$T$174:$T$203)+E$28*$C$9*$K179+E$29*$C$12*$L179+E$30*$C$15*$M179 -> 0 | J179: 8.51356372 | K179: 8.51356372 | L179: 8.51356372 | M179: 8.51356372 | O179: 0.9940209441 | P179: 0.8879713822 | Q179: 0.7903145257 | R179: 0.7049605404 | S179: 0.6301696269 | T179: 0.5644739301 | U179: 0.5066311212 | V179: 0.4555865477
H180: =E$26-E$96*(1+$E157)^-$C$5+E$32*$J180+SUMPRODUCT(E$33:E$62,$U$174:$U$203)+E$64*$J180+SUMPRODUCT(E$65:E$94,$U$174:$U$203)+E$28*$C$9*$K180+E$29*$C$12*$L180+E$30*$C$15*$M180 -> 0 | J180: 7.469443624 | K180: 7.469443624 | L180: 7.469443624 | M180: 7.469443624 | O180: 0.9930279162 | P180: 0.8705601786 | Q180: 0.7599178132 | R180: 0.6650571136 | S180: 0.5834903953 | T180: 0.5131581182 | U180: 0.4523492153 | V180: 0.3996373225
H181: =E$26-E$96*(1+$E158)^-$C$5+E$32*$J181+SUMPRODUCT(E$33:E$62,$V$174:$V$203)+E$64*$J181+SUMPRODUCT(E$65:E$94,$V$174:$V$203)+E$28*$C$9*$K181+E$29*$C$12*$L181+E$30*$C$15*$M181 -> 0 | J181: 6.623130552 | K181: 6.623130552 | L181: 6.623130552 | M181: 6.623130552 | O181: 0.9920358803 | P181: 0.8534903712 | Q181: 0.730690205 | R181: 0.6274123713 | S181: 0.5402688845 | T181: 0.4665073802 | U181: 0.403883228 | V181: 0.3505590549
O182: 0.9910448355 | P182: 0.8367552659 | Q182: 0.7025867356 | R182: 0.5918984635 | S182: 0.5002489671 | T182: 0.4240976184 | U182: 0.360610025 | V182: 0.3075079429
O183: 0.9900547807 | P183: 0.8203482999 | Q183: 0.6755641688 | R183: 0.5583947769 | S183: 0.4631934881 | T183: 0.3855432894 | U183: 0.3219732366 | V183: 0.2697438095
O184: 0.989065715 | P184: 0.8042630391 | Q184: 0.6495809316 | R184: 0.5267875254 | S184: 0.4288828593 | T184: 0.3504938995 | U184: 0.2874761041 | V184: 0.2366173768
O185: 0.9880776374 | P185: 0.7884931756 | Q185: 0.6245970496 | R185: 0.4969693636 | S185: 0.3971137586 | T185: 0.3186308177 | U185: 0.2566750929 | V185: 0.2075591024
O186: 0.9870905468 | P186: 0.7730325251 | Q186: 0.6005740861 | R186: 0.4688390222 | S186: 0.3676979247 | T186: 0.2896643797 | U186: 0.2291741901 | V186: 0.1820693881
O187: 0.9861044424 | P187: 0.7578750246 | Q187: 0.5774750828 | R187: 0.4423009644 | S187: 0.3404610414 | T187: 0.2633312543 | U187: 0.2046198126 | V187: 0.1597099896
O188: 0.985119323 | P188: 0.74301473 | Q188: 0.5552645027 | R188: 0.4172650607 | S188: 0.315241705 | T188: 0.2393920494 | U188: 0.1826962613 | V188: 0.1400964821
O189: 0.9841351879 | P189: 0.7284458137 | Q189: 0.5339081757 | R189: 0.3936462837 | S189: 0.2918904676 | T189: 0.2176291358 | U189: 0.1631216618 | V189: 0.1228916509
O190: 0.9831520358 | P190: 0.7141625625 | Q190: 0.5133732459 | R190: 0.3713644186 | S190: 0.2702689514 | T190: 0.1978446689 | U190: 0.1456443409 | V190: 0.1077996938
O191: 0.982169866 | P191: 0.700159375 | Q191: 0.493628121 | R191: 0.3503437911 | S191: 0.2502490291 | T191: 0.1798587899 | U191: 0.1300395901 | V191: 0.09456113492
O192: 0.9811886773 | P192: 0.6864307598 | Q192: 0.474642424 | R192: 0.3305130105 | S192: 0.231712064 | T192: 0.1635079908 | U192: 0.1161067769 | V192: 0.08294836396
O193: 0.9802084688 | P193: 0.6729713331 | Q193: 0.4563869462 | R193: 0.3118047269 | S193: 0.2145482074 | T193: 0.148643628 | U193: 0.1036667651 | V193: 0.07276172277
O194: 0.9792292396 | P194: 0.6597758168 | Q194: 0.4388336021 | R194: 0.2941554027 | S194: 0.1986557476 | T194: 0.1351305709 | U194: 0.09255961168 | V194: 0.06382607261
O195: 0.9782509886 | P195: 0.6468390361 | Q195: 0.4219553867 | R195: 0.2775050969 | S195: 0.183940507 | T195: 0.1228459736 | U195: 0.08264251043 | V195: 0.05598778299
O196: 0.9772737149 | P196: 0.6341559177 | Q196: 0.4057263333 | R196: 0.2617972612 | S196: 0.1703152843 | T196: 0.1116781578 | U196: 0.07378795574 | V196: 0.04911209034
O197: 0.9762974175 | P197: 0.6217214879 | Q197: 0.3901214743 | R197: 0.2469785483 | S197: 0.1576993373 | T197: 0.101525598 | U197: 0.06588210334 | V197: 0.043080781
O198: 0.9753220954 | P198: 0.6095308705 | Q198: 0.3751168023 | R198: 0.2329986305 | S198: 0.1460179049 | T198: 0.09229599818 | U198: 0.05882330655 | V198: 0.03779015877
O199: 0.9743477476 | P199: 0.5975792848 | Q199: 0.3606892329 | R199: 0.2198100288 | S199: 0.1352017638 | T199: 0.08390545289 | U199: 0.05252080942 | V199: 0.03314926208
O200: 0.9733743732 | P200: 0.585862044 | Q200: 0.3468165701 | R200: 0.2073679517 | S200: 0.1251868183 | T200: 0.07627768444 | U200: 0.04689357984 | V200: 0.02907830007
O201: 0.9724019713 | P201: 0.5743745529 | Q201: 0.3334774713 | R201: 0.1956301431 | S201: 0.1159137207 | T201: 0.06934334949 | U201: 0.04186926771 | V201: 0.02550728076
O202: 0.9714305407 | P202: 0.5631123068 | Q202: 0.3206514147 | R202: 0.1845567388 | S202: 0.1073275192 | T202: 0.06303940863 | U202: 0.03738327475 | V202: 0.02237480769
O203: 0.9704600806 | P203: 0.552070889 | Q203: 0.308318668 | R203: 0.1741101309 | S203: 0.09937733255 | T203: 0.0573085533 | U203: 0.03337792388 | V203: 0.01962702429

Sheet Exempel (lönsamhet åtgärd)
A1: Lönsamhetsberäkningar med hjälp av LCC och återbetalningstid
A2: I det här exemplet analyseras en åtgärd som bedöms ge en minskad energianvändning på 6 500 kWh/år. Notera att eftersom det är skillnaden i kostnader mellan alternativen som är intressant för jämförelsen räcker uppgiften om energibesparing. Vi behöver inte ange total energianvändning för belysning före och efter åtgärd. (Vi hade alternativt kunnat ange energibehovet till −6 500 kWh/år för Alternativ B och 0 kWh/År för Alternativ A, vilket hade gett samma lönsamhetsresultat. Ännu en fördel med att byta till LED-belysning som i det här exemplet är att underhållskostnaderna brukar bli lägre eftersom LED har en betydligt längre brinntid innan de behöver bytas. För att renodla och förenkla exemplet har dock inte underhållskostnaderna tagits med här.
B3: Generella indata
B5: Kalkylperiod (år) | C5: 20
B6: Kalkylränta (%) | C6: 0.06
A8: <- Tror du att energipriserna kommer att förändras? Tryck på plus för att ange energiprisförändring <- | B8: Energislag 1 | C8: El
B9: Energipris energislag (kr/kWh) | C9: 1
B10: Förväntad real årlig energiprisförändring (%)
B11: Energislag 2
B12: Energipris energislag (kr/kWh)
B13: Förväntad real årlig energiprisförändring (%)
B14: Energislag 3
B15: Energipris energislag (kr/kWh)
B16: Förväntad real årlig energiprisförändring (%)
B18: Nusummefaktor | C18: =IF($C$6=0,$C$5,(1-(1+$C$6)^-$C$5)/$C$6) -> 11.46992122
B19: Nusummefaktor energislag 1 | C19: =IF($C$6=$C$10,$C$5,((1-((1+$C$10)/(1+$C$6))^$C$5)/((1+$C$6)/(1+$C$10)-1))) -> 11.46992122
B20: Nusummefaktor energislag 2 | C20: =IF($C$6=$C$13,$C$5,((1-((1+$C$13)/(1+$C$6))^$C$5)/((1+$C$6)/(1+$C$13)-1))) -> 11.46992122
B21: Nusummefaktor energislag 3 | C21: =IF($C$6=$C$16,$C$5,((1-((1+$C$16)/(1+$C$6))^$C$5)/((1+$C$6)/(1+$C$16)-1))) -> 11.46992122
B23: Data för olika åtgärder/utrustningsalternativ
C24: Alt A | D24: Alt B | E24: Alt C
B25: Åtgärd/utrustningsalternativ | C25: Ingen åtgärd | D25: LED-belysning
B26: Investeringskostnad (kr) | C26: 0 | D26: 50000
B28: Årligt energibehov, energislag 1 (kWh) | C28: 6500 | D28: 0
B29: Årligt energibehov, energislag 2 (kWh)
B30: Årligt energibehov, energislag 3 (kWh)
B32: Drift- och underhållskostnad (kr/år) | C32: 0 | D32: 0
B33: Underhållskostnad år 1 | F33: =(1+$C$6)^-1 -> 0.9433962264
B34: år 2 | F34: =(1+$C$6)^-2 -> 0.88999644
B35: 3 | F35: =(1+$C$6)^-B35 -> 0.839619283
B36: 4 | F36: =(1+$C$6)^-B36 -> 0.7920936632
B37: 5 | F37: 0.7472581729
B38: 6 | F38: 0.7049605404
B39: 7 | F39: 0.6650571136
B40: 8 | F40: 0.6274123713
B41: 9 | F41: 0.5918984635
B42: 10 | F42: 0.5583947769
B43: 11 | F43: 0.5267875254
B44: 12 | F44: 0.4969693636
B45: 13 | F45: 0.4688390222
B46: 14 | F46: 0.4423009644
B47: 15 | F47: 0.4172650607
B48: 16 | F48: 0.3936462837
B49: 17 | F49: 0.3713644186
B50: 18 | F50: 0.3503437911
B51: 19 | F51: 0.3305130105
B52: 20 | F52: 0.3118047269
B53: 21 | F53: 0.2941554027
B54: 22 | F54: 0.2775050969
B55: 23 | F55: 0.2617972612
B56: 24 | F56: 0.2469785483
B57: 25 | F57: 0.2329986305
B58: 26 | F58: 0.2198100288
B59: 27 | F59: 0.2073679517
B60: 28 | F60: 0.1956301431
B61: 29 | F61: 0.1845567388
B62: 30 | F62: 0.1741101309
A63: <- Tryck på plus för att ange kostnader för enskilda år
B64: Övriga årliga kostnader (kr/år) | C64: 0 | D64: 0
B65: Övriga kostnader år 1 | F65: =(1+$C$6)^-1 -> 0.9433962264
B66: år 2 | F66: =(1+$C$6)^-2 -> 0.88999644
B67: 3 | F67: =(1+$C$6)^-B67 -> 0.839619283
B68: 4 | F68: =(1+$C$6)^-B68 -> 0.7920936632
B69: 5 | F69: 0.7472581729
B70: 6 | F70: 0.7049605404
B71: 7 | F71: 0.6650571136
B72: 8 | F72: 0.6274123713
B73: 9 | F73: 0.5918984635
B74: 10 | F74: 0.5583947769
B75: 11 | F75: 0.5267875254
B76: 12 | F76: 0.4969693636
B77: 13 | F77: 0.4688390222
B78: 14 | F78: 0.4423009644
B79: 15 | F79: 0.4172650607
B80: 16 | F80: 0.3936462837
B81: 17 | F81: 0.3713644186
B82: 18 | F82: 0.3503437911
B83: 19 | F83: 0.3305130105
B84: 20 | F84: 0.3118047269
B85: 21 | F85: 0.2941554027
B86: 22 | F86: 0.2775050969
B87: 23 | F87: 0.2617972612
B88: 24 | F88: 0.2469785483
B89: 25 | F89: 0.2329986305
B90: 26 | F90: 0.2198100288
B91: 27 | F91: 0.2073679517
B92: 28 | F92: 0.1956301431
B93: 29 | F93: 0.1845567388
B94: 30 | F94: 0.1741101309
A95: <- Tryck på plus för att ange kostnader för enskilda år
B96: Restvärde (kr) | C96: 0 | D96: 0
B98: Beräkningar och resultat
C99: Alt A | D99: Alt B | E99: Alt C
B100: Nuvärde investering minus restvärde (kr) | C100: =C26-C96*(1+$C$6)^-$C$5 -> 0 | D100: =D26-D96*(1+$C$6)^-$C$5 -> 50000 | E100: 0 | F100: Investering minus restvärde
B101: Nuvärde drift- och underhållskostnader (kr) | C101: =C32*$C$18+SUMPRODUCT(C33:C62,$F$33:$F$62) -> 0 | D101: =D32*$C$18+SUMPRODUCT(D33:D62,$F$33:$F$62) -> 0 | E101: =E32*$C$18+SUMPRODUCT(E33:E62,$F$33:$F$62) -> 0 | F101: Drift- och underhållskostnader
B102: Nuvärde övriga kostnader (kr) | C102: =C64*$C$18+SUMPRODUCT(C65:C94,$F$65:$F$94) -> 0 | D102: =D64*$C$18+SUMPRODUCT(D65:D94,$F$65:$F$94) -> 0 | E102: =E64*$C$18+SUMPRODUCT(E65:E94,$F$65:$F$94) -> 0 | F102: Övriga kostnader
B103: Nuvärde energikostnader (kr) | C103: =C28*$C$9*$C$19+C29*$C$12*$C$20+C30*$C$15*$C$21 -> 74554.48792 | D103: =D28*$C$9*$C$19+D29*$C$12*$C$20+D30*$C$15*$C$21 -> 0 | E103: =E28*$C$9*$C$19+E29*$C$12*$C$20+E30*$C$15*$C$21 -> 0 | F103: Energikostnader
B104: Livscykelkostnad, LCC (kr) | C104: =SUM(C100:C103) -> 74554.48792 | D104: =IF(SUM(D100:D103)=0,"-",SUM(D100:D103)) -> 50000 | E104: =IF(SUM(E100:E103)=0,"-",SUM(E100:E103)) -> -
B107: Lönsamhetsbedömning av åtgärd B och C (jämfört mot Alt A)
B108: Rak återbetalningstid, payoff (år) | D108: =IF(AND(D26>$C$26,(D28-$C$28)*$C$9+(D29-$C$29)*$C$12+(D30-$C$30)*$C$15+(D32-$C$32)+(D64-$C$64)>0),"återbetalas ej",IF(OR(D104="-",D26<$C$26),"-",(D26-$C$26)/(($C$28-D28)*$C$9+($C$29-D29)*$C$12+($C$30-D30)*$C$15+($C$32-D32)+($C$64-D64)))) -> 7.692307692 | E108: =IF(AND(E26>$C$26,(E28-$C$28)*$C$9+(E29-$C$29)*$C$12+(E30-$C$30)*$C$15+(E32-$C$32)+(E64-$C$64)>0),"återbetalas ej",IF(OR(E104="-",E26<$C$26),"-",(E26-$C$26)/(($C$28-E28)*$C$9+($C$29-E29)*$C$12+($C$30-E30)*$C$15+($C$32-E32)+($C$64-E64)))) -> -
B109: Nettonuvärde av investering, Minskning LCC (kr) | D109: =IF(D104="-","-",C104-D104) -> 24554.48792 | E109: =IF(E104="-","-",C104-E104) -> -
B110: =IF(OR(AND(ISNUMBER(D104),D26<C26),AND(ISNUMBER(E104),E26<C26)),"!!! För att uträkningen av återbetalningstid ska ge ett meningsfullt resultat behöver Alt A vara det alternativ som har lägst investeringskostnad !!!","") -> 
B112: Summering av resultat
B113: Av Alt A, B och C har | C113: =IF(SMALL(C104:E104,1)=C104,C24,IF(D104<E104,D24,E24)) -> Alt B | D113: lägst LCC-kostnad
B117: Jämförelse LCC
B133: Jämförelse Återbetalningstid
B148: Känslighetsanalys
F150: Alt A | G150: Alt B
E151: 0.001 | F151: =C$26-C$96*(1+$E151)^-$C$5+C$32*$J174+SUMPRODUCT(C$33:C$62,$O$174:$O$203)+C$64*$J174+SUMPRODUCT(C$65:C$94,$O$174:$O$203)+C$28*$C$9*$K174+C$29*$C$12*$L174+C$30*$C$15*$M174 -> 128644.9527 | G151: =D$26-D$96*(1+$E151)^-$C$5+D$32*$J174+SUMPRODUCT(D$33:D$62,$O$174:$O$203)+D$64*$J174+SUMPRODUCT(D$65:D$94,$O$174:$O$203)+D$28*$C$9*$K174+D$29*$C$12*$L174+D$30*$C$15*$M174 -> 50000
E152: 0.02 | F152: =C$26-C$96*(1+$E152)^-$C$5+C$32*$J175+SUMPRODUCT(C$33:C$62,$P$174:$P$203)+C$64*$J175+SUMPRODUCT(C$65:C$94,$P$174:$P$203)+C$28*$C$9*$K175+C$29*$C$12*$L175+C$30*$C$15*$M175 -> 106284.3167 | G152: =D$26-D$96*(1+$E152)^-$C$5+D$32*$J175+SUMPRODUCT(D$33:D$62,$P$174:$P$203)+D$64*$J175+SUMPRODUCT(D$65:D$94,$P$174:$P$203)+D$28*$C$9*$K175+D$29*$C$12*$L175+D$30*$C$15*$M175 -> 50000
E153: 0.04 | F153: =C$26-C$96*(1+$E153)^-$C$5+C$32*$J176+SUMPRODUCT(C$33:C$62,$Q$174:$Q$203)+C$64*$J176+SUMPRODUCT(C$65:C$94,$Q$174:$Q$203)+C$28*$C$9*$K176+C$29*$C$12*$L176+C$30*$C$15*$M176 -> 88337.12124 | G153: =D$26-D$96*(1+$E153)^-$C$5+D$32*$J176+SUMPRODUCT(D$33:D$62,$Q$174:$Q$203)+D$64*$J176+SUMPRODUCT(D$65:D$94,$Q$174:$Q$203)+D$28*$C$9*$K176+D$29*$C$12*$L176+D$30*$C$15*$M176 -> 50000
E154: 0.06 | F154: =C$26-C$96*(1+$E154)^-$C$5+C$32*$J177+SUMPRODUCT(C$33:C$62,$R$174:$R$203)+C$64*$J177+SUMPRODUCT(C$65:C$94,$R$174:$R$203)+C$28*$C$9*$K177+C$29*$C$12*$L177+C$30*$C$15*$M177 -> 74554.48792 | G154: =D$26-D$96*(1+$E154)^-$C$5+D$32*$J177+SUMPRODUCT(D$33:D$62,$R$174:$R$203)+D$64*$J177+SUMPRODUCT(D$65:D$94,$R$174:$R$203)+D$28*$C$9*$K177+D$29*$C$12*$L177+D$30*$C$15*$M177 -> 50000
E155: 0.08 | F155: =C$26-C$96*(1+$E155)^-$C$5+C$32*$J178+SUMPRODUCT(C$33:C$62,$S$174:$S$203)+C$64*$J178+SUMPRODUCT(C$65:C$94,$S$174:$S$203)+C$28*$C$9*$K178+C$29*$C$12*$L178+C$30*$C$15*$M178 -> 63817.95815 | G155: =D$26-D$96*(1+$E155)^-$C$5+D$32*$J178+SUMPRODUCT(D$33:D$62,$S$174:$S$203)+D$64*$J178+SUMPRODUCT(D$65:D$94,$S$174:$S$203)+D$28*$C$9*$K178+D$29*$C$12*$L178+D$30*$C$15*$M178 -> 50000
E156: 0.1 | F156: =C$26-C$96*(1+$E156)^-$C$5+C$32*$J179+SUMPRODUCT(C$33:C$62,$T$174:$T$203)+C$64*$J179+SUMPRODUCT(C$65:C$94,$T$174:$T$203)+C$28*$C$9*$K179+C$29*$C$12*$L179+C$30*$C$15*$M179 -> 55338.16418 | G156: =D$26-D$96*(1+$E156)^-$C$5+D$32*$J179+SUMPRODUCT(D$33:D$62,$T$174:$T$203)+D$64*$J179+SUMPRODUCT(D$65:D$94,$T$174:$T$203)+D$28*$C$9*$K179+D$29*$C$12*$L179+D$30*$C$15*$M179 -> 50000
E157: 0.12 | F157: =C$26-C$96*(1+$E157)^-$C$5+C$32*$J180+SUMPRODUCT(C$33:C$62,$U$174:$U$203)+C$64*$J180+SUMPRODUCT(C$65:C$94,$U$174:$U$203)+C$28*$C$9*$K180+C$29*$C$12*$L180+C$30*$C$15*$M180 -> 48551.38356 | G157: =D$26-D$96*(1+$E157)^-$C$5+D$32*$J180+SUMPRODUCT(D$33:D$62,$U$174:$U$203)+D$64*$J180+SUMPRODUCT(D$65:D$94,$U$174:$U$203)+D$28*$C$9*$K180+D$29*$C$12*$L180+D$30*$C$15*$M180 -> 50000
E158: 0.14 | F158: =C$26-C$96*(1+$E158)^-$C$5+C$32*$J181+SUMPRODUCT(C$33:C$62,$V$174:$V$203)+C$64*$J181+SUMPRODUCT(C$65:C$94,$V$174:$V$203)+C$28*$C$9*$K181+C$29*$C$12*$L181+C$30*$C$15*$M181 -> 43050.34859 | G158: =D$26-D$96*(1+$E158)^-$C$5+D$32*$J181+SUMPRODUCT(D$33:D$62,$V$174:$V$203)+D$64*$J181+SUMPRODUCT(D$65:D$94,$V$174:$V$203)+D$28*$C$9*$K181+D$29*$C$12*$L181+D$30*$C$15*$M181 -> 50000
B165: Testa gärna också att variera andra osäkra indata, t.ex. investeringskostnader eller energipriser!
H173: Alt C
H174: =E$26-E$96*(1+$E151)^-$C$5+E$32*$J174+SUMPRODUCT(E$33:E$62,$O$174:$O$203)+E$64*$J174+SUMPRODUCT(E$65:E$94,$O$174:$O$203)+E$28*$C$9*$K174+E$29*$C$12*$L174+E$30*$C$15*$M174 -> 0 | J174: =(1-(1+$E151)^-$C$5)/$E151 -> 19.79153119 | K174: =IF($E151=$C$10,$C$5,((1-((1+$C$10)/(1+$E151))^$C$5)/((1+$E151)/(1+$C$10)-1))) -> 19.79153119 | L174: =IF($E151=$C$13,$C$5,((1-((1+$C$13)/(1+$E151))^$C$5)/((1+$E151)/(1+$C$13)-1))) -> 19.79153119 | M174: =IF($E151=$C$16,$C$5,((1-((1+$C$16)/(1+$E151))^$C$5)/((1+$E151)/(1+$C$16)-1))) -> 19.79153119 | O174: =(1+$E$151)^-1 -> 0.999000999 | P174: =(1+$E$152)^-1 -> 0.9803921569 | Q174: =(1+$E$153)^-1 -> 0.9615384615 | R174: =(1+$E$154)^-1 -> 0.9433962264 | S174: =(1+$E$155)^-1 -> 0.9259259259 | T174: =(1+$E$156)^-1 -> 0.9090909091 | U174: =(1+$E$157)^-1 -> 0.8928571429 | V174: =(1+$E$158)^-1 -> 0.8771929825
H175: =E$26-E$96*(1+$E152)^-$C$5+E$32*$J175+SUMPRODUCT(E$33:E$62,$P$174:$P$203)+E$64*$J175+SUMPRODUCT(E$65:E$94,$P$174:$P$203)+E$28*$C$9*$K175+E$29*$C$12*$L175+E$30*$C$15*$M175 -> 0 | J175: 16.35143334 | K175: 16.35143334 | L175: 16.35143334 | M175: 16.35143334 | O175: =(1+$E$151)^-2 -> 0.998002996 | P175: =(1+$E$152)^-2 -> 0.9611687812 | Q175: =(1+$E$153)^-2 -> 0.924556213 | R175: =(1+$E$154)^-2 -> 0.88999644 | S175: =(1+$E$155)^-2 -> 0.8573388203 | T175: =(1+$E$156)^-2 -> 0.826446281 | U175: =(1+$E$157)^-2 -> 0.7971938776 | V175: =(1+$E$158)^-2 -> 0.7694675285
H176: =E$26-E$96*(1+$E153)^-$C$5+E$32*$J176+SUMPRODUCT(E$33:E$62,$Q$174:$Q$203)+E$64*$J176+SUMPRODUCT(E$65:E$94,$Q$174:$Q$203)+E$28*$C$9*$K176+E$29*$C$12*$L176+E$30*$C$15*$M176 -> 0 | J176: 13.59032634 | K176: 13.59032634 | L176: 13.59032634 | M176: 13.59032634 | O176: =(1+$E$151)^-$B35 -> 0.99700599 | P176: =(1+$E$152)^-$B35 -> 0.9423223345 | Q176: =(1+$E$153)^-$B35 -> 0.8889963587 | R176: =(1+$E$154)^-$B35 -> 0.839619283 | S176: =(1+$E$155)^-$B35 -> 0.793832241 | T176: =(1+$E$156)^-$B35 -> 0.7513148009 | U176: =(1+$E$157)^-$B35 -> 0.7117802478 | V176: =(1+$E$158)^-$B35 -> 0.6749715162
H177: =E$26-E$96*(1+$E154)^-$C$5+E$32*$J177+SUMPRODUCT(E$33:E$62,$R$174:$R$203)+E$64*$J177+SUMPRODUCT(E$65:E$94,$R$174:$R$203)+E$28*$C$9*$K177+E$29*$C$12*$L177+E$30*$C$15*$M177 -> 0 | J177: 11.46992122 | K177: 11.46992122 | L177: 11.46992122 | M177: 11.46992122 | O177: 0.99600998 | P177: 0.923845426 | Q177: 0.854804191 | R177: 0.7920936632 | S177: 0.7350298528 | T177: 0.6830134554 | U177: 0.6355180784 | V177: 0.5920802774
H178: =E$26-E$96*(1+$E155)^-$C$5+E$32*$J178+SUMPRODUCT(E$33:E$62,$S$174:$S$203)+E$64*$J178+SUMPRODUCT(E$65:E$94,$S$174:$S$203)+E$28*$C$9*$K178+E$29*$C$12*$L178+E$30*$C$15*$M178 -> 0 | J178: 9.818147407 | K178: 9.818147407 | L178: 9.818147407 | M178: 9.818147407 | O178: 0.9950149651 | P178: 0.9057308098 | Q178: 0.8219271068 | R178: 0.7472581729 | S178: 0.680583197 | T178: 0.6209213231 | U178: 0.5674268557 | V178: 0.5193686644
H179: =E$26-E$96*(1+$E156)^-$C$5+E$32*$J179+SUMPRODUCT(E$33:E$62,$T$174:$T$203)+E$64*$J179+SUMPRODUCT(E$65:E$94,$T$174:$T$203)+E$28*$C$9*$K179+E$29*$C$12*$L179+E$30*$C$15*$M179 -> 0 | J179: 8.51356372 | K179: 8.51356372 | L179: 8.51356372 | M179: 8.51356372 | O179: 0.9940209441 | P179: 0.8879713822 | Q179: 0.7903145257 | R179: 0.7049605404 | S179: 0.6301696269 | T179: 0.5644739301 | U179: 0.5066311212 | V179: 0.4555865477
H180: =E$26-E$96*(1+$E157)^-$C$5+E$32*$J180+SUMPRODUCT(E$33:E$62,$U$174:$U$203)+E$64*$J180+SUMPRODUCT(E$65:E$94,$U$174:$U$203)+E$28*$C$9*$K180+E$29*$C$12*$L180+E$30*$C$15*$M180 -> 0 | J180: 7.469443624 | K180: 7.469443624 | L180: 7.469443624 | M180: 7.469443624 | O180: 0.9930279162 | P180: 0.8705601786 | Q180: 0.7599178132 | R180: 0.6650571136 | S180: 0.5834903953 | T180: 0.5131581182 | U180: 0.4523492153 | V180: 0.3996373225
H181: =E$26-E$96*(1+$E158)^-$C$5+E$32*$J181+SUMPRODUCT(E$33:E$62,$V$174:$V$203)+E$64*$J181+SUMPRODUCT(E$65:E$94,$V$174:$V$203)+E$28*$C$9*$K181+E$29*$C$12*$L181+E$30*$C$15*$M181 -> 0 | J181: 6.623130552 | K181: 6.623130552 | L181: 6.623130552 | M181: 6.623130552 | O181: 0.9920358803 | P181: 0.8534903712 | Q181: 0.730690205 | R181: 0.6274123713 | S181: 0.5402688845 | T181: 0.4665073802 | U181: 0.403883228 | V181: 0.3505590549
O182: 0.9910448355 | P182: 0.8367552659 | Q182: 0.7025867356 | R182: 0.5918984635 | S182: 0.5002489671 | T182: 0.4240976184 | U182: 0.360610025 | V182: 0.3075079429
O183: 0.9900547807 | P183: 0.8203482999 | Q183: 0.6755641688 | R183: 0.5583947769 | S183: 0.4631934881 | T183: 0.3855432894 | U183: 0.3219732366 | V183: 0.2697438095
O184: 0.989065715 | P184: 0.8042630391 | Q184: 0.6495809316 | R184: 0.5267875254 | S184: 0.4288828593 | T184: 0.3504938995 | U184: 0.2874761041 | V184: 0.2366173768
O185: 0.9880776374 | P185: 0.7884931756 | Q185: 0.6245970496 | R185: 0.4969693636 | S185: 0.3971137586 | T185: 0.3186308177 | U185: 0.2566750929 | V185: 0.2075591024
O186: 0.9870905468 | P186: 0.7730325251 | Q186: 0.6005740861 | R186: 0.4688390222 | S186: 0.3676979247 | T186: 0.2896643797 | U186: 0.2291741901 | V186: 0.1820693881
O187: 0.9861044424 | P187: 0.7578750246 | Q187: 0.5774750828 | R187: 0.4423009644 | S187: 0.3404610414 | T187: 0.2633312543 | U187: 0.2046198126 | V187: 0.1597099896
O188: 0.985119323 | P188: 0.74301473 | Q188: 0.5552645027 | R188: 0.4172650607 | S188: 0.315241705 | T188: 0.2393920494 | U188: 0.1826962613 | V188: 0.1400964821
O189: 0.9841351879 | P189: 0.7284458137 | Q189: 0.5339081757 | R189: 0.3936462837 | S189: 0.2918904676 | T189: 0.2176291358 | U189: 0.1631216618 | V189: 0.1228916509
O190: 0.9831520358 | P190: 0.7141625625 | Q190: 0.5133732459 | R190: 0.3713644186 | S190: 0.2702689514 | T190: 0.1978446689 | U190: 0.1456443409 | V190: 0.1077996938
O191: 0.982169866 | P191: 0.700159375 | Q191: 0.493628121 | R191: 0.3503437911 | S191: 0.2502490291 | T191: 0.1798587899 | U191: 0.1300395901 | V191: 0.09456113492
O192: 0.9811886773 | P192: 0.6864307598 | Q192: 0.474642424 | R192: 0.3305130105 | S192: 0.231712064 | T192: 0.1635079908 | U192: 0.1161067769 | V192: 0.08294836396
O193: 0.9802084688 | P193: 0.6729713331 | Q193: 0.4563869462 | R193: 0.3118047269 | S193: 0.2145482074 | T193: 0.148643628 | U193: 0.1036667651 | V193: 0.07276172277
O194: 0.9792292396 | P194: 0.6597758168 | Q194: 0.4388336021 | R194: 0.2941554027 | S194: 0.1986557476 | T194: 0.1351305709 | U194: 0.09255961168 | V194: 0.06382607261
O195: 0.9782509886 | P195: 0.6468390361 | Q195: 0.4219553867 | R195: 0.2775050969 | S195: 0.183940507 | T195: 0.1228459736 | U195: 0.08264251043 | V195: 0.05598778299
O196: 0.9772737149 | P196: 0.6341559177 | Q196: 0.4057263333 | R196: 0.2617972612 | S196: 0.1703152843 | T196: 0.1116781578 | U196: 0.07378795574 | V196: 0.04911209034
O197: 0.9762974175 | P197: 0.6217214879 | Q197: 0.3901214743 | R197: 0.2469785483 | S197: 0.1576993373 | T197: 0.101525598 | U197: 0.06588210334 | V197: 0.043080781
O198: 0.9753220954 | P198: 0.6095308705 | Q198: 0.3751168023 | R198: 0.2329986305 | S198: 0.1460179049 | T198: 0.09229599818 | U198: 0.05882330655 | V198: 0.03779015877
O199: 0.9743477476 | P199: 0.5975792848 | Q199: 0.3606892329 | R199: 0.2198100288 | S199: 0.1352017638 | T199: 0.08390545289 | U199: 0.05252080942 | V199: 0.03314926208
O200: 0.9733743732 | P200: 0.585862044 | Q200: 0.3468165701 | R200: 0.2073679517 | S200: 0.1251868183 | T200: 0.07627768444 | U200: 0.04689357984 | V200: 0.02907830007
O201: 0.9724019713 | P201: 0.5743745529 | Q201: 0.3334774713 | R201: 0.1956301431 | S201: 0.1159137207 | T201: 0.06934334949 | U201: 0.04186926771 | V201: 0.02550728076
O202: 0.9714305407 | P202: 0.5631123068 | Q202: 0.3206514147 | R202: 0.1845567388 | S202: 0.1073275192 | T202: 0.06303940863 | U202: 0.03738327475 | V202: 0.02237480769
O203: 0.9704600806 | P203: 0.552070889 | Q203: 0.308318668 | R203: 0.1741101309 | S203: 0.09937733255 | T203: 0.0573085533 | U203: 0.03337792388 | V203: 0.01962702429

Sheet Exempel (reinvestering)
A1: Lönsamhetsberäkningar med hjälp av LCC och återbetalningstid
A2: I det här exemplet bedöms lönsamheten för ett åtgärdspaket som består av två energibesparingsåtgärder: Optimering av värmesystem och tilläggsisolering tak. Eftersom åtgärderna påverkar varandra (tilläggsisoleringen kräver justering av inställningarna i värmesystemet) har de lagts i ett gemensamt åtgärdspaket. Åtgärderna tillsammans förväntas ge en årlig energibesparing på 200 000 kWh, men optimeringen av värmesystemet har en investeringskostnad på 350 000 kr och en ekonomisk livslängd på 15 år medan tilläggsisoleringen av taket har en investeringskostnad på 400 000 kr och en ekonomisk livslängd på 40 år. Vi väljer att använda en kalkylperiod på 40 år för att få med hela livscykelkostnaderna för tilläggsisoleringen. Notera att besparingen har lagts som ett energibehov för nollalternativet, dvs om åtgärdspaketet inte genomförs så kommer man att ha ett energibehov på 200 000 kWh/år som man slipper om man genomför investeringen.
B3: Generella indata
B5: Kalkylperiod (år) | C5: 40
B6: Kalkylränta (%) | C6: 0.07
A8: <- Tror du att energipriserna kommer att förändras? Tryck på plus för att ange energiprisförändring <- | B8: Energislag 1 | C8: Värme
B9: Energipris energislag (kr/kWh) | C9: 0.7
B10: Förväntad real årlig energiprisförändring (%)
B11: Energislag 2
B12: Energipris energislag (kr/kWh)
B13: Förväntad real årlig energiprisförändring (%)
B14: Energislag 3
B15: Energipris energislag (kr/kWh)
B16: Förväntad real årlig energiprisförändring (%)
B18: Nusummefaktor | C18: =IF($C$6=0,$C$5,(1-(1+$C$6)^-$C$5)/$C$6) -> 13.33170884
B19: Nusummefaktor energislag 1 | C19: =IF($C$6=$C$10,$C$5,((1-((1+$C$10)/(1+$C$6))^$C$5)/((1+$C$6)/(1+$C$10)-1))) -> 13.33170884
B20: Nusummefaktor energislag 2 | C20: =IF($C$6=$C$13,$C$5,((1-((1+$C$13)/(1+$C$6))^$C$5)/((1+$C$6)/(1+$C$13)-1))) -> 13.33170884
B21: Nusummefaktor energislag 3 | C21: =IF($C$6=$C$16,$C$5,((1-((1+$C$16)/(1+$C$6))^$C$5)/((1+$C$6)/(1+$C$16)-1))) -> 13.33170884
B23: Data för olika åtgärder/utrustningsalternativ
C24: Alt A | D24: Alt B | E24: Alt C
B25: Åtgärd/utrustningsalternativ | C25: Ingen åtgärd | D25: Åtgärdspaket med två åtgärder (se manual)
B26: Investeringskostnad (kr) | C26: 0 | D26: 750000
B28: Årligt energibehov, energislag 1 (kWh) | C28: 200000
B29: Årligt energibehov, energislag 2 (kWh)
B30: Årligt energibehov, energislag 3 (kWh)
B32: Drift- och underhållskostnad (kr/år)
B33: Underhållskostnad år 1 | F33: =(1+$C$6)^-1 -> 0.9345794393
B34: år 2 | F34: =(1+$C$6)^-2 -> 0.8734387283
B35: 3 | F35: =(1+$C$6)^-B35 -> 0.8162978769
B36: 4 | F36: =(1+$C$6)^-B36 -> 0.762895212
B37: 5 | F37: 0.7129861795
B38: 6 | F38: 0.6663422238
B39: 7 | F39: 0.6227497419
B40: 8 | F40: 0.5820091046
B41: 9 | F41: 0.5439337426
B42: 10 | F42: 0.5083492921
B43: 11 | F43: 0.4750927964
B44: 12 | F44: 0.4440119592
B45: 13 | F45: 0.4149644479
B46: 14 | F46: 0.387817241
B47: 15 | F47: 0.3624460196
B48: 16 | F48: 0.3387345978
B49: 17 | F49: 0.3165743905
B50: 18 | F50: 0.2958639163
B51: 19 | F51: 0.276508333
B52: 20 | F52: 0.2584190028
B53: 21 | F53: 0.2415130867
B54: 22 | F54: 0.2257131652
B55: 23 | F55: 0.2109468833
B56: 24 | F56: 0.1971466199
B57: 25 | F57: 0.1842491775
B58: 26 | F58: 0.172195493
B59: 27 | F59: 0.1609303673
B60: 28 | F60: 0.1504022124
B61: 29 | F61: 0.1405628154
B62: 30 | F62: 0.1313671172
A63: <- Tryck på plus för att ange kostnader för enskilda år
B64: Övriga årliga kostnader (kr/år)
B65: Övriga kostnader år 1 | F65: =(1+$C$6)^-1 -> 0.9345794393
B66: år 2 | F66: =(1+$C$6)^-2 -> 0.8734387283
B67: 3 | F67: =(1+$C$6)^-B67 -> 0.8162978769
B68: 4 | F68: =(1+$C$6)^-B68 -> 0.762895212
B69: 5 | F69: 0.7129861795
B70: 6 | F70: 0.6663422238
B71: 7 | F71: 0.6227497419
B72: 8 | F72: 0.5820091046
B73: 9 | F73: 0.5439337426
B74: 10 | F74: 0.5083492921
B75: 11 | F75: 0.4750927964
B76: 12 | F76: 0.4440119592
B77: 13 | F77: 0.4149644479
B78: 14 | F78: 0.387817241
B79: 15 | D79: 350000 | F79: 0.3624460196
B80: 16 | F80: 0.3387345978
B81: 17 | F81: 0.3165743905
B82: 18 | F82: 0.2958639163
B83: 19 | F83: 0.276508333
B84: 20 | F84: 0.2584190028
B85: 21 | F85: 0.2415130867
B86: 22 | F86: 0.2257131652
B87: 23 | F87: 0.2109468833
B88: 24 | F88: 0.1971466199
B89: 25 | F89: 0.1842491775
B90: 26 | F90: 0.172195493
B91: 27 | F91: 0.1609303673
B92: 28 | F92: 0.1504022124
B93: 29 | F93: 0.1405628154
B94: 30 | D94: 350000 | F94: 0.1313671172
A95: <- Tryck på plus för att ange kostnader för enskilda år
B96: Restvärde (kr) | D96: 117000
B98: Beräkningar och resultat
C99: Alt A | D99: Alt B | E99: Alt C
B100: Nuvärde investering minus restvärde (kr) | C100: =C26-C96*(1+$C$6)^-$C$5 -> 0 | D100: =D26-D96*(1+$C$6)^-$C$5 -> 742186.6954 | E100: 0 | F100: Investering minus restvärde
B101: Nuvärde drift- och underhållskostnader (kr) | C101: =C32*$C$18+SUMPRODUCT(C33:C62,$F$33:$F$62) -> 0 | D101: =D32*$C$18+SUMPRODUCT(D33:D62,$F$33:$F$62) -> 0 | E101: =E32*$C$18+SUMPRODUCT(E33:E62,$F$33:$F$62) -> 0 | F101: Drift- och underhållskostnader
B102: Nuvärde övriga kostnader (kr) | C102: =C64*$C$18+SUMPRODUCT(C65:C94,$F$65:$F$94) -> 0 | D102: =D64*$C$18+SUMPRODUCT(D65:D94,$F$65:$F$94) -> 172834.5979 | E102: =E64*$C$18+SUMPRODUCT(E65:E94,$F$65:$F$94) -> 0 | F102: Övriga kostnader
B103: Nuvärde energikostnader (kr) | C103: =C28*$C$9*$C$19+C29*$C$12*$C$20+C30*$C$15*$C$21 -> 1866439.238 | D103: =D28*$C$9*$C$19+D29*$C$12*$C$20+D30*$C$15*$C$21 -> 0 | E103: =E28*$C$9*$C$19+E29*$C$12*$C$20+E30*$C$15*$C$21 -> 0 | F103: Energikostnader
B104: Livscykelkostnad, LCC (kr) | C104: =SUM(C100:C103) -> 1866439.238 | D104: =IF(SUM(D100:D103)=0,"-",SUM(D100:D103)) -> 915021.2933 | E104: =IF(SUM(E100:E103)=0,"-",SUM(E100:E103)) -> -
B107: Lönsamhetsbedömning av åtgärd B och C (jämfört mot Alt A)
B108: Rak återbetalningstid, payoff (år) | D108: =IF(AND(D26>$C$26,(D28-$C$28)*$C$9+(D29-$C$29)*$C$12+(D30-$C$30)*$C$15+(D32-$C$32)+(D64-$C$64)>0),"återbetalas ej",IF(OR(D104="-",D26<$C$26),"-",(D26-$C$26)/(($C$28-D28)*$C$9+($C$29-D29)*$C$12+($C$30-D30)*$C$15+($C$32-D32)+($C$64-D64)))) -> 5.357142857 | E108: =IF(AND(E26>$C$26,(E28-$C$28)*$C$9+(E29-$C$29)*$C$12+(E30-$C$30)*$C$15+(E32-$C$32)+(E64-$C$64)>0),"återbetalas ej",IF(OR(E104="-",E26<$C$26),"-",(E26-$C$26)/(($C$28-E28)*$C$9+($C$29-E29)*$C$12+($C$30-E30)*$C$15+($C$32-E32)+($C$64-E64)))) -> -
B109: Nettonuvärde av investering, Minskning LCC (kr) | D109: =IF(D104="-","-",C104-D104) -> 951417.9447 | E109: =IF(E104="-","-",C104-E104) -> -
B110: =IF(OR(AND(ISNUMBER(D104),D26<C26),AND(ISNUMBER(E104),E26<C26)),"!!! För att uträkningen av återbetalningstid ska ge ett meningsfullt resultat behöver Alt A vara det alternativ som har lägst investeringskostnad !!!","") -> 
B112: Summering av resultat
B113: Av Alt A, B och C har | C113: =IF(SMALL(C104:E104,1)=C104,C24,IF(D104<E104,D24,E24)) -> Alt B | D113: lägst LCC-kostnad
B116: Jämförelse LCC
B132: Jämförelse Återbetalningstid
B147: Känslighetsanalys
F149: Alt A | G149: Alt B
E150: 0.001 | F150: =C$26-C$96*(1+$E150)^-$C$5+C$32*$J174+SUMPRODUCT(C$33:C$62,$O$174:$O$203)+C$64*$J174+SUMPRODUCT(C$65:C$94,$O$174:$O$203)+C$28*$C$9*$K174+C$29*$C$12*$L174+C$30*$C$15*$M174 -> 5486790.074 | G150: =D$26-D$96*(1+$E150)^-$C$5+D$32*$J174+SUMPRODUCT(D$33:D$62,$O$174:$O$203)+D$64*$J174+SUMPRODUCT(D$65:D$94,$O$174:$O$203)+D$28*$C$9*$K174+D$29*$C$12*$L174+D$30*$C$15*$M174 -> 1322038.18
E151: 0.02 | F151: =C$26-C$96*(1+$E151)^-$C$5+C$32*$J175+SUMPRODUCT(C$33:C$62,$P$174:$P$203)+C$64*$J175+SUMPRODUCT(C$65:C$94,$P$174:$P$203)+C$28*$C$9*$K175+C$29*$C$12*$L175+C$30*$C$15*$M175 -> 3829767.094 | G151: =D$26-D$96*(1+$E151)^-$C$5+D$32*$J175+SUMPRODUCT(D$33:D$62,$P$174:$P$203)+D$64*$J175+SUMPRODUCT(D$65:D$94,$P$174:$P$203)+D$28*$C$9*$K175+D$29*$C$12*$L175+D$30*$C$15*$M175 -> 1150291.788
E152: 0.04 | F152: =C$26-C$96*(1+$E152)^-$C$5+C$32*$J176+SUMPRODUCT(C$33:C$62,$Q$174:$Q$203)+C$64*$J176+SUMPRODUCT(C$65:C$94,$Q$174:$Q$203)+C$28*$C$9*$K176+C$29*$C$12*$L176+C$30*$C$15*$M176 -> 2770988.344 | G152: =D$26-D$96*(1+$E152)^-$C$5+D$32*$J176+SUMPRODUCT(D$33:D$62,$Q$174:$Q$203)+D$64*$J176+SUMPRODUCT(D$65:D$94,$Q$174:$Q$203)+D$28*$C$9*$K176+D$29*$C$12*$L176+D$30*$C$15*$M176 -> 1027884.292
E153: 0.06 | F153: =C$26-C$96*(1+$E153)^-$C$5+C$32*$J177+SUMPRODUCT(C$33:C$62,$R$174:$R$203)+C$64*$J177+SUMPRODUCT(C$65:C$94,$R$174:$R$203)+C$28*$C$9*$K177+C$29*$C$12*$L177+C$30*$C$15*$M177 -> 2106481.562 | G153: =D$26-D$96*(1+$E153)^-$C$5+D$32*$J177+SUMPRODUCT(D$33:D$62,$R$174:$R$203)+D$64*$J177+SUMPRODUCT(D$65:D$94,$R$174:$R$203)+D$28*$C$9*$K177+D$29*$C$12*$L177+D$30*$C$15*$M177 -> 945606.3211
E154: 0.08 | F154: =C$26-C$96*(1+$E154)^-$C$5+C$32*$J178+SUMPRODUCT(C$33:C$62,$S$174:$S$203)+C$64*$J178+SUMPRODUCT(C$65:C$94,$S$174:$S$203)+C$28*$C$9*$K178+C$29*$C$12*$L178+C$30*$C$15*$M178 -> 1669445.867 | G154: =D$26-D$96*(1+$E154)^-$C$5+D$32*$J178+SUMPRODUCT(D$33:D$62,$S$174:$S$203)+D$64*$J178+SUMPRODUCT(D$65:D$94,$S$174:$S$203)+D$28*$C$9*$K178+D$29*$C$12*$L178+D$30*$C$15*$M178 -> 889731.0439
E155: 0.1 | F155: =C$26-C$96*(1+$E155)^-$C$5+C$32*$J179+SUMPRODUCT(C$33:C$62,$T$174:$T$203)+C$64*$J179+SUMPRODUCT(C$65:C$94,$T$174:$T$203)+C$28*$C$9*$K179+C$29*$C$12*$L179+C$30*$C$15*$M179 -> 1369067.101 | G155: =D$26-D$96*(1+$E155)^-$C$5+D$32*$J179+SUMPRODUCT(D$33:D$62,$T$174:$T$203)+D$64*$J179+SUMPRODUCT(D$65:D$94,$T$174:$T$203)+D$28*$C$9*$K179+D$29*$C$12*$L179+D$30*$C$15*$M179 -> 851260.1043
E156: 0.12 | F156: =C$26-C$96*(1+$E156)^-$C$5+C$32*$J180+SUMPRODUCT(C$33:C$62,$U$174:$U$203)+C$64*$J180+SUMPRODUCT(C$65:C$94,$U$174:$U$203)+C$28*$C$9*$K180+C$29*$C$12*$L180+C$30*$C$15*$M180 -> 1154128.735 | G156: =D$26-D$96*(1+$E156)^-$C$5+D$32*$J180+SUMPRODUCT(D$33:D$62,$U$174:$U$203)+D$64*$J180+SUMPRODUCT(D$65:D$94,$U$174:$U$203)+D$28*$C$9*$K180+D$29*$C$12*$L180+D$30*$C$15*$M180 -> 824368.5894
E157: 0.14 | F157: =C$26-C$96*(1+$E157)^-$C$5+C$32*$J181+SUMPRODUCT(C$33:C$62,$V$174:$V$203)+C$64*$J181+SUMPRODUCT(C$65:C$94,$V$174:$V$203)+C$28*$C$9*$K181+C$29*$C$12*$L181+C$30*$C$15*$M181 -> 994705.7317 | G157: =D$26-D$96*(1+$E157)^-$C$5+D$32*$J181+SUMPRODUCT(D$33:D$62,$V$174:$V$203)+D$64*$J181+SUMPRODUCT(D$65:D$94,$V$174:$V$203)+D$28*$C$9*$K181+D$29*$C$12*$L181+D$30*$C$15*$M181 -> 805283.7978
B164: Testa gärna också att variera andra osäkra indata, t.ex. investeringskostnader eller energipriser!
H173: Alt C
H174: =E$26-E$96*(1+$E150)^-$C$5+E$32*$J174+SUMPRODUCT(E$33:E$62,$O$174:$O$203)+E$64*$J174+SUMPRODUCT(E$65:E$94,$O$174:$O$203)+E$28*$C$9*$K174+E$29*$C$12*$L174+E$30*$C$15*$M174 -> 0 | J174: =(1-(1+$E150)^-$C$5)/$E150 -> 39.19135767 | K174: =IF($E150=$C$10,$C$5,((1-((1+$C$10)/(1+$E150))^$C$5)/((1+$E150)/(1+$C$10)-1))) -> 39.19135767 | L174: =IF($E150=$C$13,$C$5,((1-((1+$C$13)/(1+$E150))^$C$5)/((1+$E150)/(1+$C$13)-1))) -> 39.19135767 | M174: =IF($E150=$C$16,$C$5,((1-((1+$C$16)/(1+$E150))^$C$5)/((1+$E150)/(1+$C$16)-1))) -> 39.19135767 | O174: =(1+$E$150)^-1 -> 0.999000999 | P174: =(1+$E$151)^-1 -> 0.9803921569 | Q174: =(1+$E$152)^-1 -> 0.9615384615 | R174: =(1+$E$153)^-1 -> 0.9433962264 | S174: =(1+$E$154)^-1 -> 0.9259259259 | T174: =(1+$E$155)^-1 -> 0.9090909091 | U174: =(1+$E$156)^-1 -> 0.8928571429 | V174: =(1+$E$157)^-1 -> 0.8771929825
H175: =E$26-E$96*(1+$E151)^-$C$5+E$32*$J175+SUMPRODUCT(E$33:E$62,$P$174:$P$203)+E$64*$J175+SUMPRODUCT(E$65:E$94,$P$174:$P$203)+E$28*$C$9*$K175+E$29*$C$12*$L175+E$30*$C$15*$M175 -> 0 | J175: 27.35547924 | K175: 27.35547924 | L175: 27.35547924 | M175: 27.35547924 | O175: =(1+$E$150)^-2 -> 0.998002996 | P175: =(1+$E$151)^-2 -> 0.9611687812 | Q175: =(1+$E$152)^-2 -> 0.924556213 | R175: =(1+$E$153)^-2 -> 0.88999644 | S175: =(1+$E$154)^-2 -> 0.8573388203 | T175: =(1+$E$155)^-2 -> 0.826446281 | U175: =(1+$E$156)^-2 -> 0.7971938776 | V175: =(1+$E$157)^-2 -> 0.7694675285
H176: =E$26-E$96*(1+$E152)^-$C$5+E$32*$J176+SUMPRODUCT(E$33:E$62,$Q$174:$Q$203)+E$64*$J176+SUMPRODUCT(E$65:E$94,$Q$174:$Q$203)+E$28*$C$9*$K176+E$29*$C$12*$L176+E$30*$C$15*$M176 -> 0 | J176: 19.79277388 | K176: 19.79277388 | L176: 19.79277388 | M176: 19.79277388 | O176: =(1+$E$150)^-$B35 -> 0.99700599 | P176: =(1+$E$151)^-$B35 -> 0.9423223345 | Q176: =(1+$E$152)^-$B35 -> 0.8889963587 | R176: =(1+$E$153)^-$B35 -> 0.839619283 | S176: =(1+$E$154)^-$B35 -> 0.793832241 | T176: =(1+$E$155)^-$B35 -> 0.7513148009 | U176: =(1+$E$156)^-$B35 -> 0.7117802478 | V176: =(1+$E$157)^-$B35 -> 0.6749715162
H177: =E$26-E$96*(1+$E153)^-$C$5+E$32*$J177+SUMPRODUCT(E$33:E$62,$R$174:$R$203)+E$64*$J177+SUMPRODUCT(E$65:E$94,$R$174:$R$203)+E$28*$C$9*$K177+E$29*$C$12*$L177+E$30*$C$15*$M177 -> 0 | J177: 15.04629687 | K177: 15.04629687 | L177: 15.04629687 | M177: 15.04629687 | O177: 0.99600998 | P177: 0.923845426 | Q177: 0.854804191 | R177: 0.7920936632 | S177: 0.7350298528 | T177: 0.6830134554 | U177: 0.6355180784 | V177: 0.5920802774
H178: =E$26-E$96*(1+$E154)^-$C$5+E$32*$J178+SUMPRODUCT(E$33:E$62,$S$174:$S$203)+E$64*$J178+SUMPRODUCT(E$65:E$94,$S$174:$S$203)+E$28*$C$9*$K178+E$29*$C$12*$L178+E$30*$C$15*$M178 -> 0 | J178: 11.92461333 | K178: 11.92461333 | L178: 11.92461333 | M178: 11.92461333 | O178: 0.9950149651 | P178: 0.9057308098 | Q178: 0.8219271068 | R178: 0.7472581729 | S178: 0.680583197 | T178: 0.6209213231 | U178: 0.5674268557 | V178: 0.5193686644
H179: =E$26-E$96*(1+$E155)^-$C$5+E$32*$J179+SUMPRODUCT(E$33:E$62,$T$174:$T$203)+E$64*$J179+SUMPRODUCT(E$65:E$94,$T$174:$T$203)+E$28*$C$9*$K179+E$29*$C$12*$L179+E$30*$C$15*$M179 -> 0 | J179: 9.779050718 | K179: 9.779050718 | L179: 9.779050718 | M179: 9.779050718 | O179: 0.9940209441 | P179: 0.8879713822 | Q179: 0.7903145257 | R179: 0.7049605404 | S179: 0.6301696269 | T179: 0.5644739301 | U179: 0.5066311212 | V179: 0.4555865477
H180: =E$26-E$96*(1+$E156)^-$C$5+E$32*$J180+SUMPRODUCT(E$33:E$62,$U$174:$U$203)+E$64*$J180+SUMPRODUCT(E$65:E$94,$U$174:$U$203)+E$28*$C$9*$K180+E$29*$C$12*$L180+E$30*$C$15*$M180 -> 0 | J180: 8.243776682 | K180: 8.243776682 | L180: 8.243776682 | M180: 8.243776682 | O180: 0.9930279162 | P180: 0.8705601786 | Q180: 0.7599178132 | R180: 0.6650571136 | S180: 0.5834903953 | T180: 0.5131581182 | U180: 0.4523492153 | V180: 0.3996373225
H181: =E$26-E$96*(1+$E157)^-$C$5+E$32*$J181+SUMPRODUCT(E$33:E$62,$V$174:$V$203)+E$64*$J181+SUMPRODUCT(E$65:E$94,$V$174:$V$203)+E$28*$C$9*$K181+E$29*$C$12*$L181+E$30*$C$15*$M181 -> 0 | J181: 7.105040941 | K181: 7.105040941 | L181: 7.105040941 | M181: 7.105040941 | O181: 0.9920358803 | P181: 0.8534903712 | Q181: 0.730690205 | R181: 0.6274123713 | S181: 0.5402688845 | T181: 0.4665073802 | U181: 0.403883228 | V181: 0.3505590549
O182: 0.9910448355 | P182: 0.8367552659 | Q182: 0.7025867356 | R182: 0.5918984635 | S182: 0.5002489671 | T182: 0.4240976184 | U182: 0.360610025 | V182: 0.3075079429
O183: 0.9900547807 | P183: 0.8203482999 | Q183: 0.6755641688 | R183: 0.5583947769 | S183: 0.4631934881 | T183: 0.3855432894 | U183: 0.3219732366 | V183: 0.2697438095
O184: 0.989065715 | P184: 0.8042630391 | Q184: 0.6495809316 | R184: 0.5267875254 | S184: 0.4288828593 | T184: 0.3504938995 | U184: 0.2874761041 | V184: 0.2366173768
O185: 0.9880776374 | P185: 0.7884931756 | Q185: 0.6245970496 | R185: 0.4969693636 | S185: 0.3971137586 | T185: 0.3186308177 | U185: 0.2566750929 | V185: 0.2075591024
O186: 0.9870905468 | P186: 0.7730325251 | Q186: 0.6005740861 | R186: 0.4688390222 | S186: 0.3676979247 | T186: 0.2896643797 | U186: 0.2291741901 | V186: 0.1820693881
O187: 0.9861044424 | P187: 0.7578750246 | Q187: 0.5774750828 | R187: 0.4423009644 | S187: 0.3404610414 | T187: 0.2633312543 | U187: 0.2046198126 | V187: 0.1597099896
O188: 0.985119323 | P188: 0.74301473 | Q188: 0.5552645027 | R188: 0.4172650607 | S188: 0.315241705 | T188: 0.2393920494 | U188: 0.1826962613 | V188: 0.1400964821
O189: 0.9841351879 | P189: 0.7284458137 | Q189: 0.5339081757 | R189: 0.3936462837 | S189: 0.2918904676 | T189: 0.2176291358 | U189: 0.1631216618 | V189: 0.1228916509
O190: 0.9831520358 | P190: 0.7141625625 | Q190: 0.5133732459 | R190: 0.3713644186 | S190: 0.2702689514 | T190: 0.1978446689 | U190: 0.1456443409 | V190: 0.1077996938
O191: 0.982169866 | P191: 0.700159375 | Q191: 0.493628121 | R191: 0.3503437911 | S191: 0.2502490291 | T191: 0.1798587899 | U191: 0.1300395901 | V191: 0.09456113492
O192: 0.9811886773 | P192: 0.6864307598 | Q192: 0.474642424 | R192: 0.3305130105 | S192: 0.231712064 | T192: 0.1635079908 | U192: 0.1161067769 | V192: 0.08294836396
O193: 0.9802084688 | P193: 0.6729713331 | Q193: 0.4563869462 | R193: 0.3118047269 | S193: 0.2145482074 | T193: 0.148643628 | U193: 0.1036667651 | V193: 0.07276172277
O194: 0.9792292396 | P194: 0.6597758168 | Q194: 0.4388336021 | R194: 0.2941554027 | S194: 0.1986557476 | T194: 0.1351305709 | U194: 0.09255961168 | V194: 0.06382607261
O195: 0.9782509886 | P195: 0.6468390361 | Q195: 0.4219553867 | R195: 0.2775050969 | S195: 0.183940507 | T195: 0.1228459736 | U195: 0.08264251043 | V195: 0.05598778299
O196: 0.9772737149 | P196: 0.6341559177 | Q196: 0.4057263333 | R196: 0.2617972612 | S196: 0.1703152843 | T196: 0.1116781578 | U196: 0.07378795574 | V196: 0.04911209034
O197: 0.9762974175 | P197: 0.6217214879 | Q197: 0.3901214743 | R197: 0.2469785483 | S197: 0.1576993373 | T197: 0.101525598 | U197: 0.06588210334 | V197: 0.043080781
O198: 0.9753220954 | P198: 0.6095308705 | Q198: 0.3751168023 | R198: 0.2329986305 | S198: 0.1460179049 | T198: 0.09229599818 | U198: 0.05882330655 | V198: 0.03779015877
O199: 0.9743477476 | P199: 0.5975792848 | Q199: 0.3606892329 | R199: 0.2198100288 | S199: 0.1352017638 | T199: 0.08390545289 | U199: 0.05252080942 | V199: 0.03314926208
O200: 0.9733743732 | P200: 0.585862044 | Q200: 0.3468165701 | R200: 0.2073679517 | S200: 0.1251868183 | T200: 0.07627768444 | U200: 0.04689357984 | V200: 0.02907830007
O201: 0.9724019713 | P201: 0.5743745529 | Q201: 0.3334774713 | R201: 0.1956301431 | S201: 0.1159137207 | T201: 0.06934334949 | U201: 0.04186926771 | V201: 0.02550728076
O202: 0.9714305407 | P202: 0.5631123068 | Q202: 0.3206514147 | R202: 0.1845567388 | S202: 0.1073275192 | T202: 0.06303940863 | U202: 0.03738327475 | V202: 0.02237480769
O203: 0.9704600806 | P203: 0.552070889 | Q203: 0.308318668 | R203: 0.1741101309 | S203: 0.09937733255 | T203: 0.0573085533 | U203: 0.03337792388 | V203: 0.01962702429
